Cogmind - Beta 12 X4 @@@ ROGUE MODE // 2022.12.13 @ 02:56:34 Player: cptwinky Result: Destroyed by Q385-c with Enhanced Force Lance Performance ------------- Evolutions (8) 4000 Regions Visited (37) 7400 Robots Destroyed (459) 2295 Value Destroyed (23476) 23476 Prototype IDs (142) 2840 Alien Tech Used (16) 3200 Bonus (8809) 8809 TOTAL SCORE: 52020 Bonus ------- High Alert Combat Kills 1724 Follower Combat Kills 2139 Entered Garrisons 600 Used RIF Installer 500 Aligned with FarCom 300 Met Data Miner 300 Met Imprinter 300 Destroyed Z-Imprinter 1000 Triggered Deep Caves Wall 500 Exposed GOLEM Chamber 500 Met Zhirov 300 Met Warlord at Base 500 MAIN.C Attacked Warlord 500 Warlord Defense Kills 858 Scanned by Researcher 1000 Pursued by Intercept 500 Friendly Fire -2712 Cogmind --------- Core Integrity 0/1700 Matter 56/300 Energy 100/100 System Corruption 3% Temperature Cool (0) Movement Core (50) Location -2/Section 7 Parts ------- > --- POWER (3) -------- (None) > --- PROPULSION (6) --- Assembled Alloy Leg > --- UTILITY (11) ----- Assembled Nanovents Enhanced Optical Array Experimental Terrain Scan Processor Relay Coupler [Proto] (9) GOLEM Unit > --- WEAPON (3) ------- (None) > --- INVENTORY (5) ---- Relay Coupler [Proto] (9) Improved Potential Cannon Peak State ------------ > --- POWER ------------ Assembled Flux Generator Improved Quantum Reactor > --- PROPULSION ------- High-density Centrium Heavy Treads Assembled Alloy Leg Assembled Alloy Leg Centrium Leg Centrium Leg > --- UTILITY ---------- Assembled Nanovents Assembled Nanovents Assembled Nanovents Huge Storage Unit Assembled Biocell Array Assembled Suspension Frame Experimental Terrain Scan Processor Assembled Combat Suite Assembled Alloy Armor GOLEM Unit > --- WEAPON ----------- Sigix Broadsword Enhanced Force Lance > --- INVENTORY -------- Vortex Chain Reactor Experimental Energy Well Zionite Biocell Enhanced Optical Array Makeshift Cloaking Device Experimental Utility Shielding Experimental EM Disruption Field Advanced Force Field Advanced Hacking Suite Relay Coupler [Proto] Relay Coupler [Proto] Relay Coupler [Proto] Relay Coupler [Proto] Advanced Component Analysis Suite Long-range Tractor Beam Dimensional Node Initializer High-powered Transdimensional Reconstructor Core Membrane Improved Potential Cannon Hellfire Missile Launcher Advanced Remote Datajack Core Stripper [Rating: 230] Favorites ----------- Power Assembled Flux Generator Engine Improved Deuterium Engine Power Core Light Fission Core Reactor Assembled Flux Generator Propulsion Medium Treads Treads Medium Treads Leg Assembled Alloy Leg Flight Unit Cooled Nuclear Pulse Thruster Utility Huge Storage Unit Device GOLEM Unit Storage Huge Storage Unit Processor Experimental Targeting Computer Hackware Advanced Hacking Suite Protection Assembled Alloy Armor Artifact Phase Redirector Weapon Assembled Focal Cannon Energy Gun Sigix Sheargun Energy Cannon Assembled Focal Cannon Ballistic Gun Flak Gun Ballistic Cannon Heavy Hardcell Cannon Launcher Mini Grenade Launcher Special Weapon Advanced Remote Datajack Impact Weapon Great Maul Slashing Weapon Sigix Broadsword Piercing Weapon Enhanced Force Lance Special Melee Weapon Improved Datajack Build | -11 -10 -10 -9 -9 -9 -8 -8 -8 -7 -7 -7 -7 -6 -6 -6 -6 -6 -6 -5 -5 -5 -5 -5 -4 -4 -4 -4 -4 -4 -4 -3 -3 -3 -3 -2 -2 -2 ------- Run | Scr Mat Min Mat Min Exi Min Mat Gar Fac Low Low Dat Pro Fac Low Low Zio Dee Pro Fac Upp Upp War Pro Fac Gar Fac Upp Upp Zhi Pro Res Tes Gar Res Qua Sec Slots Evolved 16 | . . . 2 . . . 2 . 2 . . . . 2 . . . . . 2 . . . . 2 . . . . . . 2 . . 2 . . Power 2 | . . . . . . . . . . . . . . 1 . . . . . . . . . . . . . . . . . 1 . . . . . Propulsion 4 | . . . 1 . . . . . 1 . . . . . . . . . . . . . . . . . . . . . . . . . 2 . . Utility 9 | . . . 1 . . . 2 . 1 . . . . 1 . . . . . 2 . . . . 2 . . . . . . . . . . . . Weapon 1 | . . . . . . . . . . . . . . . . . . . . . . . . . . . . . . . . 1 . . . . . Parts Attached 580 | 3 6 3 29 1 19 6 23 5 26 13 20 1 8 10 14 21 5 40 . 6 9 6 13 7 . 7 45 11 12 6 7 4 44 12 20 54 64 Power 25 | . . . 4 . 1 . . 1 1 . . . . 1 . 2 . 5 . . . . . . . . . . . . . 1 1 2 . 1 5 Engine 12 | . . . 4 . 1 . . 1 1 . . . . . . 1 . 3 . . . . . . . . . . . . . . . . . . 1 Core 3 | . . . . . . . . . . . . . . 1 . 1 . 1 . . . . . . . . . . . . . . . . . . . Reactor 10 | . . . . . . . . . . . . . . . . . . 1 . . . . . . . . . . . . . 1 1 2 . 1 4 Propulsion 71 | 2 1 . 11 . 3 . 9 1 8 1 2 . . . . 3 . 2 . . . . 2 . . 1 2 . . 2 . . 3 3 4 4 7 Treads 47 | 2 1 . 6 . 2 . 9 1 8 1 2 . . . . 3 . 2 . . . . . . . . . . . . . . . . 2 4 4 Leg 23 | . . . 5 . 1 . . . . . . . . . . . . . . . . . 2 . . 1 2 . . 1 . . 3 3 2 . 3 Wheel . | . . . . . . . . . . . . . . . . . . . . . . . . . . . . . . . . . . . . . . Hover . | . . . . . . . . . . . . . . . . . . . . . . . . . . . . . . . . . . . . . . Flight 1 | . . . . . . . . . . . . . . . . . . . . . . . . . . . . . . 1 . . . . . . . Utility 350 | . 3 2 7 1 8 1 6 . 5 7 9 . 5 6 8 11 3 21 . 6 8 6 10 7 . 5 41 10 11 3 7 3 34 5 16 43 32 Device 224 | . 1 1 2 . 1 . 1 . . 2 4 . 5 5 8 9 3 8 . 4 8 5 6 6 . 4 32 8 8 1 7 2 20 4 13 23 23 Storage 15 | . 1 . 1 . 3 . . . . . 1 . . . . . . 2 . . . . 1 . . . 1 . 1 . . . 3 . 1 . . Processor 16 | . . . 2 . 1 . 2 . 1 2 . . . . . . . . . 1 . . 2 . . . . . . . . . 1 . . 1 3 Hackware 9 | . . . . . . . . . 1 . . . . . . . . . . . . . . . . . 3 . . 1 . . 1 . . . 3 Protection 85 | . 1 1 2 1 3 1 3 . 3 3 4 . . 1 . 2 . 11 . 1 . 1 1 1 . 1 5 2 2 1 . 1 9 1 2 18 3 Artifact 1 | . . . . . . . . . . . . . . . . . . . . . . . . . . . . . . . . . . . . 1 . Weapon 134 | 1 2 1 7 . 7 5 8 3 12 5 9 1 3 3 6 5 2 12 . . 1 . 1 . . 1 2 1 1 1 . . 6 2 . 6 20 Energy Gun 4 | . . . . . . . . . . . . . . . . . . 2 . . . . . . . . . . . . . . 1 . . . 1 Energy Cannon 5 | . . . . . . . . . . . . . . . . . . 3 . . . . . . . . . . . . . . . . . 1 1 Ballistic Gun 55 | 1 2 1 5 . 5 3 5 2 9 2 4 1 2 1 3 4 1 3 . . . . . . . . . . . . . . 1 . . . . Ballistic Cannon 2 | . . . . . . . . . . . . . . . . . . . . . . . . . . . . . . . . . 1 . . 1 . Launcher 24 | . . . 2 . 1 2 1 1 2 2 1 . . . 3 1 . 1 . . 1 . . . . . . 1 1 . . . 1 2 . . 1 Special Weapon 10 | . . . . . . . . . . . . . . . . . . 1 . . . . . . . 1 2 . . 1 . . 2 . . . 3 Impact Weapon 20 | . . . . . . . . . 1 1 3 . . 2 . . 1 2 . . . . 1 . . . . . . . . . . . . 1 8 Slashing Weapon 8 | . . . . . . . . . . . . . . . . . . . . . . . . . . . . . . . . . . . . 3 5 Piercing Weapon 1 | . . . . . . . . . . . . . . . . . . . . . . . . . . . . . . . . . . . . . 1 Special Melee Weapon 5 | . . . . . 1 . 2 . . . 1 . 1 . . . . . . . . . . . . . . . . . . . . . . . . Unidentified Prototypes 52 | . . 1 1 . . . . . . . 1 . . . . . 1 7 . . . . 5 . . 1 1 . . 3 . . 10 . . 10 11 Parts Lost 65 | . . 1 6 . 5 . 2 . 1 1 . . . . . 4 . 7 . . . 1 1 . . . 1 . . . . . 3 1 . 1 30 Power 13 | . . . 3 . 1 . . . . . . . . . . 1 . 1 . . . . . . . . . . . . . . 1 . . . 6 Propulsion 10 | . . . . . 2 . . . . . . . . . . 1 . 1 . . . . . . . . . . . . . . . . . . 6 Utility 30 | . . . 2 . 1 . 1 . 1 1 . . . . . 2 . 5 . . . 1 1 . . . 1 . . . . . 1 1 . 1 11 Weapon 12 | . . 1 1 . 1 . 1 . . . . . . . . . . . . . . . . . . . . . . . . . 1 . . . 7 Highest Loss Streak 12 | . . 1 2 . 4 . 1 . 1 1 . . . . . 2 . 3 . . . 1 1 . . . 1 . . . . . 3 1 . 1 12 To Critical Strikes 1 | . . . . . 1 . . . . . . . . . . . . . . . . . . . . . . . . . . . . . . . . Average Slot Usage (%) 91 | . 97 99 98 100 99 100 91 99 99 100 93 100 100 100 100 98 96 89 80 82 81 81 82 87 89 89 88 89 88 80 89 88 88 89 86 81 75 Engine 4 | . 14 14 10 11 11 11 9 8 7 7 7 7 7 6 6 6 6 4 . . . . . . . . . . . . . . . . . . . Reactor 3 | . . . . . . . . . . . . . . . . . . 1 6 5 5 5 5 5 5 5 5 5 5 5 5 7 7 8 8 7 7 Treads 16 | . 28 28 27 33 32 33 27 27 29 30 30 30 30 26 26 26 26 19 13 11 11 11 7 . . . . . . . . . . . 3 4 3 Leg 8 | . . . 5 . . . . . . . . . . . . . . 6 13 11 11 11 14 22 21 21 21 21 20 21 21 19 19 19 18 17 16 Device 10 | . 6 . 4 . . . . 9 7 6 6 . 6 13 6 11 9 11 6 12 10 10 10 11 21 15 15 15 16 15 15 13 13 14 18 17 15 Storage 8 | . 14 14 11 11 11 11 9 9 7 7 4 7 7 6 6 6 6 8 13 11 11 11 11 11 10 10 10 10 9 10 10 9 9 9 8 8 7 Processor 10 | . . . 8 11 4 . 17 18 15 29 27 23 23 20 20 14 13 8 . 4 5 5 5 11 10 10 10 10 8 5 5 4 3 4 4 4 5 Protection 10 | . 4 14 8 11 16 22 10 9 11 . . 15 7 6 13 11 13 9 13 10 11 11 11 10 10 15 14 15 15 17 15 14 14 13 6 9 7 Energy Cannon 4 | . . . . . . . . . . . . . . . . . . 6 13 11 10 11 10 11 10 5 8 9 9 2 10 14 13 13 13 6 . Ballistic Gun 6 | . 28 27 21 22 17 21 17 18 14 12 2 . 12 11 11 11 7 5 . . . . . . . . . . . . . . . . . . . Naked Turns . | . . . . . . . . . . . . . . . . . . . . . . . . . . . . . . . . . . . . . . Heaviest Build 229 | 13 29 29 42 42 110 113 110 104 109 118 122 122 122 140 140 138 121 165 165 167 166 166 170 170 168 174 178 179 180 177 177 200 211 226 229 228 208 Greatest Support 154 | 40 40 40 60 60 60 60 63 60 104 104 112 112 112 112 112 114 114 114 60 80 60 60 110 110 110 115 120 120 140 120 120 120 124 124 154 140 140 Greatest Overweight (x) 4 | . . . . . 1 1 1 1 1 1 1 1 1 1 1 1 1 2 2 2 2 2 2 1 1 1 1 1 1 1 1 1 1 2 1 2 4 Average Overweight (x) . | . . . . . . 1 1 1 . . . 1 . 1 1 . . 1 2 2 2 2 1 1 1 1 1 1 . 1 1 1 1 1 1 1 1 Largest Inventory Capacity 25 | 8 15 15 15 15 25 25 25 25 25 25 25 25 25 25 25 25 25 25 25 25 25 25 25 25 25 25 25 25 25 25 25 25 25 25 25 25 25 Average Capacity 23 | 8 14 15 15 15 20 25 25 25 25 25 17 25 25 25 25 25 25 24 25 25 25 25 25 25 25 25 25 25 24 25 25 25 25 25 25 25 24 Most Carried 25 | 6 15 15 15 15 23 25 25 25 25 25 25 24 25 25 25 25 25 25 25 25 25 25 25 25 25 25 25 25 25 25 25 25 25 25 25 25 25 Average Carried 22 | 6 11 14 14 14 16 24 24 24 24 24 15 24 24 24 24 23 24 23 24 24 24 24 24 24 25 23 24 24 23 24 25 24 24 24 24 24 23 Final Capacity 25 | 8 15 15 15 15 25 25 25 25 25 25 25 25 25 25 25 25 25 25 25 25 25 25 25 25 25 25 25 25 25 25 25 25 25 25 25 25 5 Final Carried 25 | 6 15 15 15 15 23 25 24 25 25 25 24 24 25 25 25 25 25 25 25 24 25 24 25 25 25 25 24 25 25 25 25 25 25 25 25 25 3 Class Distribution -------------------- 32% | Mutant 22% | Bothacker-Golem 17% | Scavenger-Mutant 16% | Golem 6% | Bothacker-Mutant Dominant Class ---------------- Mutant | -10/Materials Mutant | -10/Mines Scavenger-Mutant | -9/Materials Scavenger-Mutant | -9/Mines Mutant | -9/Exiles Scavenger-Mutant | -8/Mines Scavenger-Mutant | -8/Materials Scavenger-Mutant | -8/Garrison Scavenger-Mutant | -7/Factory Mutant | -7/Lower Caves Mutant | -7/Lower Caves Mutant | -7/Data Miner Mutant | -6/Proximity Caves Scavenger-Mutant | -6/Factory Mutant | -6/Lower Caves Mutant | -6/Lower Caves Mutant | -6/Zion Golem | -6/Deep Caves Golem | -5/Proximity Caves Golem | -5/Factory Golem | -5/Upper Caves Golem | -5/Upper Caves Golem | -5/Warlord Golem | -4/Proximity Caves Golem | -4/Factory Commander-Golem | -4/Garrison Bothacker-Golem | -4/Factory Bothacker-Golem | -4/Upper Caves Bothacker-Golem | -4/Upper Caves Bothacker-Golem | -4/Zhirov Bothacker-Golem | -3/Proximity Caves Bothacker-Golem | -3/Research Bothacker-Golem | -3/Testing Bothacker-Golem | -3/Garrison Bothacker-Golem | -2/Research Bothacker-Golem | -2/Quarantine Bothacker-Mutant | -2/Section 7 Resources | -11 -10 -10 -9 -9 -9 -8 -8 -8 -7 -7 -7 -7 -6 -6 -6 -6 -6 -6 -5 -5 -5 -5 -5 -4 -4 -4 -4 -4 -4 -4 -3 -3 -3 -3 -2 -2 -2 ----------- Run | Scr Mat Min Mat Min Exi Min Mat Gar Fac Low Low Dat Pro Fac Low Low Zio Dee Pro Fac Upp Upp War Pro Fac Gar Fac Upp Upp Zhi Pro Res Tes Gar Res Qua Sec Matter Collected 12301 | 230 207 92 563 157 774 424 666 229 313 296 2247 . 328 112 595 499 80 456 . 60 90 70 129 50 . 165 691 189 234 . 266 40 502 348 218 565 416 Remotely . | . . . . . . . . . . . . . . . . . . . . . . . . . . . . . . . . . . . . . . Salvage Created 23959 | . 404 195 1278 125 635 986 1548 493 483 443 595 . 154 133 293 457 . 1067 82 281 371 519 441 156 . 95 2319 463 395 . 521 305 2208 1241 259 2316 2698 Parts 1221 | . 40 5 73 9 90 29 90 35 33 8 15 . 2 . 12 15 . 41 5 11 27 19 20 6 . 4 151 13 26 . 23 13 137 45 11 113 100 Haulers Intercepted 15 | . 1 . 4 . . . 4 . . . . . . . . . . . . . . . . . . . 3 . . . . 2 . . . 1 . Recyclers Shooed 4 | . . . . . . 3 1 . . . . . . . . . . . . . . . . . . . . . . . . . . . . . . Parts Field Recycled . | . . . . . . . . . . . . . . . . . . . . . . . . . . . . . . . . . . . . . . Retrieved Matter . | . . . . . . . . . . . . . . . . . . . . . . . . . . . . . . . . . . . . . . Parts Self-Destructed 165 | . . . . . . . . . . 8 4 . 11 . 11 7 . . 5 . 30 18 . 11 . . . 13 24 . 23 . . . . . . Prevented 12 | . . . . . . . . . . . . . . . 3 . . . . . 6 1 . . . . . . 2 . . . . . . . . Kills | -11 -10 -10 -9 -9 -9 -8 -8 -8 -7 -7 -7 -7 -6 -6 -6 -6 -6 -6 -5 -5 -5 -5 -5 -4 -4 -4 -4 -4 -4 -4 -3 -3 -3 -3 -2 -2 -2 ------- Run | Scr Mat Min Mat Min Exi Min Mat Gar Fac Low Low Dat Pro Fac Low Low Zio Dee Pro Fac Upp Upp War Pro Fac Gar Fac Upp Upp Zhi Pro Res Tes Gar Res Qua Sec Combat Hostiles Destroyed 347 | . 14 2 23 4 1 7 23 13 8 5 5 . 5 . 8 12 . 12 1 4 9 9 8 2 . . 32 7 7 . 6 3 31 25 3 22 36 Melee 37 | . . . . . . . . . . . . . . . . . . 2 . . . . . . . . . . . . . . . . . 9 26 Guns 91 | . 14 2 17 4 1 4 22 9 4 3 1 . 2 . 2 3 . 3 . . . . . . . . . . . . . . . . . . . Cannons 134 | . . . . . . . . . . . . . . . . . . 2 1 4 5 9 8 2 . . 20 3 3 . 6 3 31 22 3 12 . AOE 77 | . . . 6 . . 3 1 4 4 2 4 . 3 . 6 9 . 1 . . 4 . . . . . 12 4 4 . . . . 3 . . 7 Classes Destroyed 34 | . 5 . 4 . 2 3 2 . 1 3 . . . . . 1 . 4 1 . . . 1 . . . . . . . . . 5 1 . 1 . Worker 16 | . . . . . . 1 2 . 3 . . . . . . . . . . . . . . . . . 8 . . . . . 2 . . . . Builder 17 | . . . . . . . 3 . . . . . . 1 . . . . . . . . . . . . 8 . . . . . 1 . . 1 3 Tunneler 3 | . . . 1 . . . 1 . . . . . . . . . . . . . . . . . . . 1 . . . . . . . . . . Hauler 15 | . 1 . 4 . . . 4 . . . . . . . . . . . . . . . . . . . 3 . . . . 2 . . . 1 . Recycler 18 | . . . 3 1 . 8 . . 3 . . . . 1 . . . . . . . . . . . . . . . . . . . . . 1 1 Minesweeper 5 | . . . . . . . . . . 1 . . . . . 1 . . . . 1 . . . . . . . 2 . . . . . . . . Mechanic 1 | . . . . . . . 1 . . . . . . . . . . . . . . . . . . . . . . . . . . . . . . Operator 7 | . 1 . 1 . . . 1 . . . . . . . . . . . . . . . . . . . 2 . . . . . . . . . 2 Turret 1 | . . . . . 1 . . . . . . . . . . . . . . . . . . . . . . . . . . . . . . . . Watcher 13 | . 1 . 1 . . . 1 . . . . . . . . . . . . 1 . . . . . . 7 . . . . . 1 . . . 1 Swarmer 82 | . 9 . 4 4 . . . 4 4 . 4 . 1 . 5 3 . . . . 4 1 . 1 . . 10 5 4 . . 3 5 8 . . 3 Cutter 4 | . . . . . . . . . . . . . . . . . . . . . . . . . . . . . . . . . . 4 . . . Saboteur 1 | . . . . . . . . . . . . . . . . . . . . . . . 1 . . . . . . . . . . . . . . Grunt 120 | . 5 2 12 . . 4 15 6 . 3 . . 3 . 1 7 . . . 4 3 4 6 1 . . 7 . 2 . 3 . 5 6 2 9 10 Brawler 8 | . . . . . . 1 . 1 . 1 . . . . 1 1 . . . . . . . . . . 1 . . . . . . 2 . . . Duelist 4 | . . . 2 . . . . . . . . . 1 . . . . . . . . 1 . . . . . . . . . . . . . . . Researcher 5 | . . . . . . . . . . . . . . . . . . . . . . . . . . . . . . . . . 2 . . . 3 Sentry 30 | . . . 5 . . . 7 2 2 1 . . . . 1 . . . . . . 1 . . . . 2 1 . . 1 . . 5 1 . 1 Specialist 2 | . . . . . . . . . . . . . . . . . . . . . . . . . . . . . . . . . 2 . . . . Hunter 21 | . . . . . . 2 1 . . . . . . . . . . . . . . 2 . . . . 4 . . . . . 4 . . 1 7 Programmer 36 | . . . . . . . . . 2 . . . . . . . . . . . 2 . 1 . . . 8 1 1 . 2 . 12 . . . 7 Q-Series 4 | . . . . . . . . . . . . . . . . . . . . . . . . . . . . . . . . . 1 . . . 3 Behemoth 1 | . . . . . . . . . . . . . . . . . . . 1 . . . . . . . . . . . . . . . . . . Quarantine Guard 11 | . . . . . . . . . . . . . . . . . . . . . . . . . . . . . . . . . . . . 11 . S7 Guard 1 | . . . . . . . . . . . . . . . . . . . . . . . . . . . . . . . . . . . . . 1 Tracker 1 | . . . . . . . . . . . . . . . . . . . . . . . . . . . . . . . . . . . . . 1 Striker 2 | . . . . . . . . . . . . . . . . . . . . . . . . . . . . . . . . . 1 . . . 1 Alpha 7 3 | . . . . . . . . . . . . . . . . . . . . . . . . . . . . . . . . . 1 . . . 2 Fortress 1 | . . . . . . . . . . . . . . . . . . . . . . . . . . . . . . . . . . . . 1 . Zionite 8 | . . . . . 8 . . . . . . . . . . . . . . . . . . . . . . . . . . . . . . . . Z-Technician 5 | . . . . . . . . . . . . . . . . . . 5 . . . . . . . . . . . . . . . . . . . Z-Light 4 | . . . . . . . . . . . . . . . . . . 4 . . . . . . . . . . . . . . . . . . . Decomposer 6 | . . . . . . . . . . . 6 . . . . . . . . . . . . . . . . . . . . . . . . . . Packrat 5 | . . . . . . . . . . 2 . . . . 1 . . . . . . . . 1 . . . 1 . . . . . . . . . Tinkerer 2 | . . . . . . . . . . 1 1 . . . . . . . . . . . . . . . . . . . . . . . . . . Thief 1 | . . . . . . . . . . . . . . . . 1 . . . . . . . . . . . . . . . . . . . . . Assembler 2 | . . . . . . . . . . . . . . . . . . 2 . . . . . . . . . . . . . . . . . . . Assembled 2 | . . . . . . . . . . . . . . . . . . 2 . . . . . . . . . . . . . . . . . . . Golem 6 | . . . . . . . . . . . . . . . . . . 6 . . . . . . . . . . . . . . . . . . . Mutant 5 | . . . . . . . . . . 1 2 . . . 1 1 . . . . . . . . . . . . . . . . . . . . . Best Kill Streak 13 | . 6 2 5 4 4 3 9 4 5 4 4 . 3 1 3 4 . 4 1 3 4 4 5 1 . . 13 5 4 . 3 3 5 5 2 5 9 Combat Bots Only 8 | . 6 2 5 4 1 3 5 4 4 4 4 . 3 . 3 4 . 4 1 3 4 4 5 1 . . 8 5 4 . 3 3 5 5 2 4 7 Max Kills in Single Turn 9 | . 2 1 2 1 2 2 4 4 4 2 3 . 2 1 2 2 . 2 1 1 4 1 1 1 . . 9 2 2 . 2 1 2 3 1 1 2 Gunslinging 1 | . 1 . . . . . . 1 . 1 . . . . . . . 1 . . . . . . . . . . . . . . . . . . . Exploded 6 | . . . 2 . . 2 1 4 3 1 3 . 2 . 2 2 . 1 . . 4 . . . . . 6 2 2 . . . . 3 . . 2 Melee 1 | . . . . . . . . . . . . . . . . . . 1 . . . . . . . . . . . . . . . . . 1 1 Uniques/NPCs Destroyed 6 | . . 1 . . 4 . . . . . . . . . . . . 1 . . . . . . . . . . . . . . . . . . . YI-UF0 (-10/Mines) 8R-AWN (-9/Exiles) EX-BIN (-9/Exiles) EX-HEX (-9/Exiles) EX-DEC (-9/Exiles) Z-Imprinter (-6/Deep Caves) Combat | -11 -10 -10 -9 -9 -9 -8 -8 -8 -7 -7 -7 -7 -6 -6 -6 -6 -6 -6 -5 -5 -5 -5 -5 -4 -4 -4 -4 -4 -4 -4 -3 -3 -3 -3 -2 -2 -2 -------- Run | Scr Mat Min Mat Min Exi Min Mat Gar Fac Low Low Dat Pro Fac Low Low Zio Dee Pro Fac Upp Upp War Pro Fac Gar Fac Upp Upp Zhi Pro Res Tes Gar Res Qua Sec Damage Taken 29166 | . 411 155 1037 78 1107 470 944 120 738 108 142 . 92 . 119 689 . 1420 17 . 83 372 950 10 . . 1564 214 179 . 229 210 2384 887 205 2152 12080 Core 3098 | . 98 25 79 7 55 14 79 14 16 23 . . 9 . . 75 . 185 . . . . 121 . . . 65 32 . . . 22 234 47 10 94 1794 Absorbed by Shields 5757 | . . . . . . . . . . . . . 99 . 110 180 . 6 . . . . . . . . 365 . . . . . . 413 211 1571 2802 Reduced by Siege Mode 54 | . . . . . . . . . . . . . . . . . . . . . . . . . . . . . . . . . . . . 54 . Redirected to Shielding 647 | . . 6 110 . . . . . 176 . . . . . . 8 . 196 . . . . . . . . . . . . . . . . . . 151 Regen/Repaired (Parts) 5807 | . . . . . . . 103 . 53 . . . . . . . . . . . . . 48 . . . 471 . . . . . 271 . . 1387 3474 Core Remaining (%) 78 | 100 . 50 . . . 61 . 83 . . . . 93 . . . . . 69 . . . . 87 . . . . . . 91 . . 76 . . . Volleys Fired 1186 | . 40 21 78 7 73 49 68 26 19 8 8 . 9 . 17 37 . 53 7 8 19 31 37 4 1 22 162 20 31 3 30 14 105 67 16 75 21 Largest 3 | . 2 2 2 2 2 2 2 2 2 2 2 . 2 . 2 2 . 2 2 2 2 2 2 2 2 1 2 2 2 1 2 3 3 3 3 3 2 Hottest 200 | . 40 40 46 46 60 46 51 51 60 56 60 . 56 . 58 56 . 162 50 50 50 50 50 50 50 25 50 50 50 10 50 75 75 75 75 75 200 Shots Fired 2081 | . 80 42 150 14 136 94 133 48 35 13 9 . 14 . 23 46 . 77 14 15 37 62 56 8 2 22 233 32 55 3 60 25 210 137 37 134 25 Gun 803 | . 80 42 144 14 131 90 132 47 32 10 7 . 10 . 16 33 . 14 . . . . . . . . . . . . . . . . . . 1 Cannon 1137 | . . . . . . . . . . . . . . . . . . 37 14 15 36 62 56 8 2 7 221 29 52 . 60 25 202 133 37 134 7 Launcher 69 | . . . 6 . 5 4 1 1 3 3 2 . 4 . 7 13 . 2 . . 1 . . . . . . 3 3 . . . . 4 . . 7 Special 72 | . . . . . . . . . . . . . . . . . . 24 . . . . . . . 15 12 . . 3 . . 8 . . . 10 Kinetic 802 | . 80 42 144 14 131 90 132 47 32 10 7 . 10 . 16 33 . 14 . . . . . . . . . . . . . . . . . . . Thermal 1128 | . . . . . . . . . . . . . . . . . . 28 14 15 36 62 56 8 2 7 221 29 52 . 60 25 202 133 37 134 7 Explosive 65 | . . . 6 . 5 . 1 1 3 3 2 . 4 . 7 13 . 2 . . 1 . . . . . . 3 3 . . . . 4 . . 7 Electromagnetic 37 | . . . . . . 4 . . . . . . . . . . . 33 . . . . . . . . . . . . . . . . . . . Slashing 1 | . . . . . . . . . . . . . . . . . . . . . . . . . . . . . . . . . . . . . 1 Robot Hit Streak 41 | . 15 7 23 3 13 10 41 26 13 11 2 . 4 . 7 12 . 14 6 13 15 5 18 25 27 31 26 10 7 8 20 21 19 24 5 32 33 Robot Miss Streak 12 | . 5 1 2 1 4 4 2 1 4 3 2 . 12 . 4 4 . 6 . . 1 3 2 . . 1 2 1 1 . 1 1 2 2 1 2 2 Penetration Max 1 | . . . . . 1 . 1 1 1 . . . . . . . . . . . . . . . . . . . . . . . . . . . . Secondary Targets 14 | . 4 . 1 . . . 3 1 . 1 . . . . 1 1 . 2 . . . . . . . . . . . . . . . . . . . Max Gunslinging Chain 1 | . 1 . 1 . . . 1 1 . 1 . . . . 1 1 . 1 . . . . . . . . . . . . . . . . . . . Shots Hit Robots 1446 | . 50 31 120 8 89 59 111 33 30 16 19 1 9 2 14 36 . 73 3 7 16 27 30 7 2 20 124 14 18 3 22 12 119 65 15 105 136 Core Hits 869 | . 27 13 61 5 30 27 65 20 32 24 9 . 18 . 40 56 . 58 2 6 12 12 15 3 . 3 73 11 11 . 10 6 54 38 6 54 68 Critical Kills 21 | . . 1 1 . 6 . 2 . 2 1 4 . . . 1 1 . 2 . . . . . . . . . . . . . . . . . . . Critical Parts Destroyed 33 | . . . 1 . 15 . 1 . 1 1 2 . . . 1 4 . 3 . . . . . . . . . . . . . . . . . . 4 Critical Strikes 74 | . . 1 2 . 21 . 3 . 3 2 6 . . . 2 5 . 8 . . . . . . . . . . . . . . . . . 6 15 Burn 2 | . . . . . . . . . . . . . . . . . . 2 . . . . . . . . . . . . . . . . . . . Destroy 40 | . . 1 2 . 21 . 3 . 3 . 3 . . . 2 5 . . . . . . . . . . . . . . . . . . . . . Corrupt 1 | . . . . . . . . . . . . . . . . . . 1 . . . . . . . . . . . . . . . . . . . Smash 14 | . . . . . . . . . . 2 3 . . . . . . 5 . . . . . . . . . . . . . . . . . . 4 Sever 16 | . . . . . . . . . . . . . . . . . . . . . . . . . . . . . . . . . . . . 6 10 Impale 1 | . . . . . . . . . . . . . . . . . . . . . . . . . . . . . . . . . . . . . 1 Melee Attacks 315 | . . . . . 4 . . . 1 9 38 1 1 5 . . 1 13 . . . . 6 . . . . . . . . . . . . 44 192 Kinetic 10 | . . . . . . . . . . . . . . . . . . . . . . . . . . . . . . . . . . . . 5 5 Impact 109 | . . . . . . . . . 1 9 38 . . 5 . . 1 13 . . . . 6 . . . . . . . . . . . . . 36 Slashing 188 | . . . . . . . . . . . . . . . . . . . . . . . . . . . . . . . . . . . . 39 149 Piercing 2 | . . . . . . . . . . . . . . . . . . . . . . . . . . . . . . . . . . . . . 2 Sneak Attacks 30 | . . . . . 4 . . . . 6 7 1 1 2 . . . . . . . . . . . . . . . . . . . . . . 9 Combat Hostiles 4 | . . . . . . . . . . . . . . . . . . . . . . . . . . . . . . . . . . . . . 4 Follow-up Attacks 18 | . . . . . . . . . . . . . . . . . . . . . . . . . . . . . . . . . . . . . 18 Damage Inflicted 63625 | . 528 315 1775 142 1420 1041 2340 815 925 1080 1739 . 437 196 949 1931 . 2188 169 372 993 1338 1363 326 89 340 8449 1151 1396 . 1048 576 5442 4018 688 6085 11961 Guns 9064 | . 502 299 1272 138 1384 839 2118 617 605 174 71 . 101 . 249 517 . 178 . . . . . . . . . . . . . . . . . . . Cannons 26993 | . . . . . . . . . . . . . . . . . . 603 169 362 773 1338 1363 321 89 340 5587 638 871 . 1048 576 5422 3045 688 3456 304 Explosions 11653 | . . . 490 . 36 144 178 198 281 340 251 . 336 . 693 1414 . 244 . . 220 . . . . . 2628 513 525 . . . . 973 . . 2189 Melee 15052 | . . . . . . . . . . 566 1417 . . 196 . . . 882 . . . . . . . . . . . . . . . . . 2534 9457 Ramming 624 | . 26 16 13 4 . 58 44 . 39 . . . . . 7 . . 42 . 10 . . . 5 . . 234 . . . . . 20 . . 95 11 Kinetic 9461 | . 502 299 1272 138 1384 839 2118 617 605 174 71 . 101 . 249 517 . 178 . . . . . . . . . . . . . . . . . 173 224 Thermal 29646 | . . . . . . . . . . . . . . . . . . 239 169 362 773 1338 1363 321 89 340 8215 638 871 . 1048 576 5422 3045 688 3456 693 Explosive 8492 | . . . 490 . 36 . 178 198 281 340 251 . 336 . 693 1414 . 244 . . 220 . . . . . . 513 525 . . . . 973 . . 1800 Electromagnetic 747 | . . . . . . 144 . . . . . . . . . . . 603 . . . . . . . . . . . . . . . . . . . Impact 4193 | . . . . . . . . . . 566 1417 . . 196 . . . 882 . . . . . . . . . . . . . . . . . . 1132 Slashing 10380 | . . . . . . . . . . . . . . . . . . . . . . . . . . . . . . . . . . . . 2361 8019 Piercing 82 | . . . . . . . . . . . . . . . . . . . . . . . . . . . . . . . . . . . . . 82 Highest Corruption 6 | . . . . . . . . . . . . . . . . 5 . . . . . . . . . . 5 5 6 6 6 . 5 5 . 1 3 Average Corruption 4 | . . . . . . . . . . . . . . . . 2 . . . . . . . . . . 4 5 5 6 6 . 2 5 . 1 2 Corruption Purged 6 | . . . . . . . . . . . . . . . . 5 . . . . . . . . . . . . . . . . . . . 1 . Corruption Blocked 15 | . . . . . . . . . . . . . . . . . . . . . . . . . . . . . . . . . . . 15 . . Effects 269 | . . . . . . . . . . . . . . . . 8 . . . . . . . . . . 51 24 55 10 26 . 20 38 . 1 36 Message Errors 72 | . . . . . . . . . . . . . . . . . . . . . . . . . . . 14 8 16 3 5 . 7 7 . . 12 Matter Fused 62 | . . . . . . . . . . . . . . . . 3 . . . . . . . . . . 13 4 8 3 9 . 4 12 . . 6 Heat Flow Errors 24 | . . . . . . . . . . . . . . . . 2 . . . . . . . . . . 4 1 4 . 3 . . 3 . . 7 Energy Discharges 37 | . . . . . . . . . . . . . . . . 1 . . . . . . . . . . 8 4 11 . 2 . 3 5 . . 3 Parts Rejected 7 | . . . . . . . . . . . . . . . . . . . . . . . . . . . 1 1 . . . . 1 2 . . 2 Data Loss (minor) 35 | . . . . . . . . . . . . . . . . 2 . . . . . . . . . . 4 4 9 1 3 . 3 4 . 1 4 Data Loss (major) 11 | . . . . . . . . . . . . . . . . . . . . . . . . . . . . 1 4 2 2 . . 1 . . 1 Misfires 8 | . . . . . . . . . . . . . . . . . . . . . . . . . . . 5 . 1 . 1 . 1 . . . . Alerts 7 | . . . . . . . . . . . . . . . . . . . . . . . . . . . 1 1 2 1 . . 1 . . . 1 Weapon Failures 6 | . . . . . . . . . . . . . . . . . . . . . . . . . . . 1 . . . 1 . . 4 . . . Overload Shots . | . . . . . . . . . . . . . . . . . . . . . . . . . . . . . . . . . . . . . . Overflow Damage 4404 | . . . . . . . 3 . 32 352 1054 . . 126 4 77 . 227 . 16 34 26 3 57 . 14 447 41 216 . 23 30 166 79 4 103 1270 Projectiles 973 | . . . . . . . . . . . . . . . . . . 5 . 16 34 26 3 57 . 14 231 41 196 . 23 30 166 76 4 51 . Explosions 482 | . . . . . . . . . 32 . 3 . . . 4 77 . . . . . . . . . . 174 . 20 . . . . 3 . . 169 Melee 2949 | . . . . . . . 3 . . 352 1051 . . 126 . . . 222 . . . . . . . . 42 . . . . . . . . 52 1101 Knockbacks 20 | . . . . . . 1 1 . 1 2 2 . . . . . . 4 . . . . . . . . 2 . . . . . 1 . . 1 5 Impact 20 | . . . . . . 1 1 . 1 2 2 . . . . . . 4 . . . . . . . . 2 . . . . . 1 . . 1 5 Kinetic . | . . . . . . . . . . . . . . . . . . . . . . . . . . . . . . . . . . . . . . Secondary . | . . . . . . . . . . . . . . . . . . . . . . . . . . . . . . . . . . . . . . Self-Inflicted Damage 663 | . . . 77 . 42 . . . 104 . 55 . . . . 49 . . . . . . . . . . 39 . 68 . . . . 47 . . 182 Shots 17 | . . . 4 . 2 . . . 3 . 2 . . . . 1 . . . . . . . . . . 1 . 1 . . . . 1 . . 2 Rammed 43 | . 6 4 7 1 . 5 3 . 4 . . . . . 1 . . 5 . . . . . . . . . . . . . . . . . . 7 Targets Rammed 68 | . 7 4 8 1 . 5 4 . 5 . . . . . 1 . . 5 . 1 . . . 2 . . 13 . . . . . 2 . . 3 7 Kicked 21 | . . . . . . . . . . . . . . . . . . . . 1 . . . 2 . . 13 . . . . . 2 . . 3 . Crushed 4 | . 1 . 1 . . . 1 . 1 . . . . . . . . . . . . . . . . . . . . . . . . . . . . Highest Temperature 373 | . 12 27 22 . 288 159 65 24 13 8 . . 17 . 66 159 . 342 . . . 2 30 . . . 208 253 253 . 153 3 22 261 92 373 351 Average Temperature 40 | . 7 12 7 . 69 32 22 18 5 6 . . 7 . 25 41 . 62 . . . 2 10 . . . 97 115 118 . 75 2 7 49 32 31 110 Received Heat Transfer 3457 | . 138 108 282 . . 108 441 54 72 45 . . 50 . 56 136 . 232 . . 18 90 289 . . . 36 54 21 . 36 . 199 63 32 86 811 Effects 4 | . . . . . . . . . . . . . . . . . . . . . . . . . . . . . . . . . . . . 3 1 Shutdowns 1 | . . . . . . . . . . . . . . . . . . . . . . . . . . . . . . . . . . . . 1 . Energy Bleed 1 | . . . . . . . . . . . . . . . . . . . . . . . . . . . . . . . . . . . . . 1 Interference 2 | . . . . . . . . . . . . . . . . . . . . . . . . . . . . . . . . . . . . 2 . Siege Activations 7 | . . . . . . . . . . . . . . . . . . . . . . . . . . . . . . . . . . . . 7 . Total Turns 138 | . . . . . . . . . . . . . . . . . . . . . . . . . . . . . . . . . . . . 138 . Longest Duration 45 | . . . . . . . . . . . . . . . . . . . . . . . . . . . . . . . . . . . . 45 . Robots Corrupted 2 | . . . . . . . . . . . . . . . . . . 2 . . . . . . . . . . . . . . . . . . . Combat Hostiles 2 | . . . . . . . . . . . . . . . . . . 2 . . . . . . . . . . . . . . . . . . . Parts Fried 29 | . . . . . . . . . . 4 4 . . 6 . . . 9 . . . 1 . . . . 3 . . . . . . . . . 2 Impact Corruptions 66 | . . . . . . . 1 . . 9 29 . . 4 . . . 4 . . . . . . . . 4 . . . . . . . . 1 14 Robots Melted . | . . . . . . . . . . . . . . . . . . . . . . . . . . . . . . . . . . . . . . Combat Hostiles . | . . . . . . . . . . . . . . . . . . . . . . . . . . . . . . . . . . . . . . Parts Melted 21 | . . . . . . . . . . . . . . . . . . 1 . . . 1 . . . . 4 1 . . . . 4 . . 10 . Heat Transferred 18129 | . . . . . . . . . . . . . . . . . . 2080 75 175 400 725 762 175 50 175 4700 325 475 . 575 325 2856 1611 375 1800 470 Parts Sabotaged . | . . . . . . . . . . . . . . . . . . . . . . . . . . . . . . . . . . . . . . Parts Stolen 2 | . . . . . . . . . . . . . . . . 2 . . . . . . . . . . . . . . . . . . . . . Parts Stripped . | . . . . . . . . . . . . . . . . . . . . . . . . . . . . . . . . . . . . . . Power Chain Reactions 1 | . . . . . . 1 . . . . . . . . . . . . . . . . . . . . . . . . . . . . . . . Missiles Intercepted . | . . . . . . . . . . . . . . . . . . . . . . . . . . . . . . . . . . . . . . Alert | -11 -10 -10 -9 -9 -9 -8 -8 -8 -7 -7 -7 -7 -6 -6 -6 -6 -6 -6 -5 -5 -5 -5 -5 -4 -4 -4 -4 -4 -4 -4 -3 -3 -3 -3 -2 -2 -2 ------- Run | Scr Mat Min Mat Min Exi Min Mat Gar Fac Low Low Dat Pro Fac Low Low Zio Dee Pro Fac Upp Upp War Pro Fac Gar Fac Upp Upp Zhi Pro Res Tes Gar Res Qua Sec Peak Influence 1338 | . 341 129 385 229 . 133 338 705 526 . . . . 27 . . . . . 131 . . . . 12 331 1338 . . . . 166 476 1244 754 493 990 Initial 699 | . . 89 . 144 . . 7 219 369 . . . . . . . . . . . . . . . . 8 173 . . . . . 93 357 699 221 169 Average 286 | . 182 48 233 107 . 19 109 550 329 . . . . 10 . . . . . 61 . . . . 1 221 409 . . . . 81 248 926 552 196 388 Maximum Alert Level 4 | . 1 . 1 1 . . 1 3 2 . . . . . . . . . . . . . . . . 1 4 . . . . . 2 4 3 2 3 Low Security (%) 42 | 100 58 100 45 98 . 100 75 . . . . . . 100 . . . . . 100 . . . . 100 14 12 . . . . 100 42 . . 51 15 Level 1 32 | . 41 . 54 1 . . 24 12 77 . . . . . . . . . . . . . . . . 85 48 . . . . . 46 1 22 44 40 Level 2 17 | . . . . . . . . 61 22 . . . . . . . . . . . . . . . . . 31 . . . . . 11 20 58 4 42 Level 3 4 | . . . . . . . . 25 . . . . . . . . . . . . . . . . . . 4 . . . . . . 30 19 . 1 Level 4 2 | . . . . . . . . . . . . . . . . . . . . . . . . . . . 3 . . . . . . 47 . . . Level 5 . | . . . . . . . . . . . . . . . . . . . . . . . . . . . . . . . . . . . . . . High Security . | . . . . . . . . . . . . . . . . . . . . . . . . . . . . . . . . . . . . . . Max Security . | . . . . . . . . . . . . . . . . . . . . . . . . . . . . . . . . . . . . . . Squads Dispatched 68 | . 2 . 4 . . . 5 . 2 . . . . 1 . . . . . 2 . . . . 2 . 11 . . . . 1 10 . 1 8 19 Investigation 14 | . 1 . 2 . . . 3 . . . . . . 1 . . . . . 1 . . . . 1 . . . . . . . 1 . . 4 . Extermination 20 | . . . . . . . . . 2 . . . . . . . . . . 1 . . . . . . 4 . . . . . 6 . . . 7 Reinforcement 25 | . 1 . 2 . . . 1 . . . . . . . . . . . . . . . . . 1 . 5 . . . . 1 3 . 1 4 6 Assault 5 | . . . . . . . . . . . . . . . . . . . . . . . . . . . 2 . . . . . . . . . 3 Garrison 1 | . . . . . . . 1 . . . . . . . . . . . . . . . . . . . . . . . . . . . . . . Intercept 3 | . . . . . . . . . . . . . . . . . . . . . . . . . . . . . . . . . . . . . 3 Searches Triggered . | . . . . . . . . . . . . . . . . . . . . . . . . . . . . . . . . . . . . . . Data Miner Redirects 6 | . . . . . . . . . . . . . . . . . . . . . . . . . . . 1 . . . . . . . . 3 2 Construction Impeded 2 | . . . . . . . . . . . . . . . . . . . . . . . . . . . 1 . . . . . . . . . 1 Haulers Reinforced 4 | . . . . . . . . . . . . . . . . . . . . . . . . . 1 . 2 . . . . . . . . 1 . Active Scanning Responses . | . . . . . . . . . . . . . . . . . . . . . . . . . . . . . . . . . . . . . . Cargo Convoy Interrupts . | . . . . . . . . . . . . . . . . . . . . . . . . . . . . . . . . . . . . . . Stealth | -11 -10 -10 -9 -9 -9 -8 -8 -8 -7 -7 -7 -7 -6 -6 -6 -6 -6 -6 -5 -5 -5 -5 -5 -4 -4 -4 -4 -4 -4 -4 -3 -3 -3 -3 -2 -2 -2 --------- Run | Scr Mat Min Mat Min Exi Min Mat Gar Fac Low Low Dat Pro Fac Low Low Zio Dee Pro Fac Upp Upp War Pro Fac Gar Fac Upp Upp Zhi Pro Res Tes Gar Res Qua Sec Distress Signals 28 | . 2 . 1 . . . 3 . . . . . . . . . . . . . . . . . . . 2 . . . . . 1 . 8 2 9 Communications Jammed 113 | . . . . . . . . . 4 . . . . . . . . . . . . . . . . . 21 . . . . . 40 . . . 48 Distress Signals 108 | . . . . . . . . . . . . . . . . . . . . . . . . . . . 21 . . . . . 39 . . . 48 Times Spotted 576 | . 21 2 31 4 27 6 33 10 11 7 4 . 7 . 11 14 . 37 1 4 6 9 39 3 . 1 42 7 7 . 5 5 39 26 9 24 124 Peak Tracking Total 35 | . 8 2 6 4 7 3 6 1 4 3 4 . 3 . 5 4 . 35 . 1 2 4 9 4 . 1 4 3 4 . 2 5 7 5 4 5 10 Tactical Retreats 21 | . . . 2 . 5 . . . . 1 . . . . . . . 3 . . . . . . . . . . . . . 2 . 2 1 2 3 Traps | -11 -10 -10 -9 -9 -9 -8 -8 -8 -7 -7 -7 -7 -6 -6 -6 -6 -6 -6 -5 -5 -5 -5 -5 -4 -4 -4 -4 -4 -4 -4 -3 -3 -3 -3 -2 -2 -2 ------- Run | Scr Mat Min Mat Min Exi Min Mat Gar Fac Low Low Dat Pro Fac Low Low Zio Dee Pro Fac Upp Upp War Pro Fac Gar Fac Upp Upp Zhi Pro Res Tes Gar Res Qua Sec Traps Triggered 24 | . 1 . 1 . . . . 6 4 . . . . . . . . . . . . . . . . 4 1 . . . . 1 . . . 4 2 Indirectly . | . . . . . . . . . . . . . . . . . . . . . . . . . . . . . . . . . . . . . . Trap Hack Attempts 51 | . . . . . . . 51 . . . . . . . . . . . . . . . . . . . . . . . . . . . . . . Triggered . | . . . . . . . . . . . . . . . . . . . . . . . . . . . . . . . . . . . . . . Disarmed . | . . . . . . . . . . . . . . . . . . . . . . . . . . . . . . . . . . . . . . Reprogrammed 6 | . . . 3 . . . 3 . . . . . . . . . . . . . . . . . . . . . . . . . . . . . . Reused 7 | . . . 1 . 1 . . . . . . . . . . 3 . 1 . . 1 . . . . . . . . . . . . . . . . Traps Extracted . | . . . . . . . . . . . . . . . . . . . . . . . . . . . . . . . . . . . . . . Installed 9 | . . . . . 3 . . . . . . . . . . 3 . 1 . . 2 . . . . . . . . . . . . . . . . Triggered 20 | . . . 1 . . . . . . . . . . . 3 3 . . . . 4 1 5 . . . 1 . 2 . . . . . . . . Most Traps Carried 3 | . . . . 3 3 . . . . . . . . . . 3 3 1 . . . . . . . . . . . . . . . . . . . Exploded 3 | . . . . . 3 . . . . . . . . . . . . . . . . . . . . . . . . . . . . . . . . Machines | -11 -10 -10 -9 -9 -9 -8 -8 -8 -7 -7 -7 -7 -6 -6 -6 -6 -6 -6 -5 -5 -5 -5 -5 -4 -4 -4 -4 -4 -4 -4 -3 -3 -3 -3 -2 -2 -2 ---------- Run | Scr Mat Min Mat Min Exi Min Mat Gar Fac Low Low Dat Pro Fac Low Low Zio Dee Pro Fac Upp Upp War Pro Fac Gar Fac Upp Upp Zhi Pro Res Tes Gar Res Qua Sec Machines Disabled 129 | . 1 . . . 16 2 . . 6 1 3 . . . . . . 1 . 1 . 1 2 . . . 61 . 2 . . . 8 4 1 10 9 Max in Single Turn 25 | . 1 . . . 2 1 . . 3 1 1 . . . . . . 1 . 1 . 1 1 . . . 25 . 1 . . . 1 1 1 1 1 Garrison Access 6 | . . . . . . . . . . . . . . 1 . . . . . . . . . . . . 2 . . . . . . . 1 1 1 Garrison Relay 1 | . . . . . . . . . . . . . . . . . . . . . . . . . . . . . . . . . . 1 . . . Machines Sabotaged . | . . . . . . . . . . . . . . . . . . . . . . . . . . . . . . . . . . . . . . Overloaded Fab Kills . | . . . . . . . . . . . . . . . . . . . . . . . . . . . . . . . . . . . . . . Hacking | -11 -10 -10 -9 -9 -9 -8 -8 -8 -7 -7 -7 -7 -6 -6 -6 -6 -6 -6 -5 -5 -5 -5 -5 -4 -4 -4 -4 -4 -4 -4 -3 -3 -3 -3 -2 -2 -2 --------- Run | Scr Mat Min Mat Min Exi Min Mat Gar Fac Low Low Dat Pro Fac Low Low Zio Dee Pro Fac Upp Upp War Pro Fac Gar Fac Upp Upp Zhi Pro Res Tes Gar Res Qua Sec Machines Accessed 99 | . 4 1 6 . 2 . 5 4 10 2 . 3 . 5 1 . . . . 1 1 . 2 . 1 1 14 . 1 4 . 3 7 . . 13 8 Terminals 50 | . 3 . 4 . . . 2 4 3 . . . . 3 . . . . . 1 . . . . . 1 7 . . . . 1 5 . . 9 7 Fabricators 2 | . . . . . . . . . . . . . . 1 . . . . . . . . . . . . . . . . . 1 . . . . . Repair Stations 10 | . . . . . . . 1 . 2 . . . . . . . . . . . . . . . . . 4 . . . . . 1 . . 2 . Recycling Units 6 | . 1 . 1 . . . 1 . 1 . . . . . . . . . . . . . . . . . 1 . . . . 1 . . . . . Scanalyzers 4 | . . . 1 . . . . . 2 . . . . . . . . . . . . . . . . . . . . . . . . . . 1 . Garrison Access 10 | . . . . . . . 1 . 2 . . . . 1 . . . . . . . . . . 1 . 2 . . . . . 1 . . 1 1 Total Hacks 274 | . 15 1 22 . 2 . 20 7 27 2 . 25 . 13 1 . . . . 5 1 . 3 . 3 1 31 . 5 17 . 5 16 . . 33 19 Successful 160 | . 4 1 12 . 2 . 9 3 13 2 . 25 . 6 1 . . . . 1 1 . 3 . 2 1 16 . 5 17 . 4 6 . . 16 10 Failed 114 | . 11 . 10 . . . 11 4 14 . . . . 7 . . . . . 4 . . . . 1 . 15 . . . . 1 10 . . 17 9 Catastrophic 21 | . 1 . 1 . . . 2 1 2 . . . . . . . . . . 1 . . . . . . 5 . . . . 1 1 . . 4 2 Database Lockouts . | . . . . . . . . . . . . . . . . . . . . . . . . . . . . . . . . . . . . . . Manual 91 | . 12 . 4 . 1 . 13 . 6 . . . . 7 . . 4 . . 5 . . 1 . 1 . 10 . . . . 1 4 . . 11 11 Terminals 129 | . 11 . 13 . . . 10 7 7 . . . . 8 . . . . . 5 . . . . . 1 16 . . . . 2 10 . . 22 17 Fabricators 3 | . . . . . . . . . . . . . . 2 . . . . . . . . . . . . . . . . . 1 . . . . . Repair Stations 28 | . . . . . . . 2 . 5 . . . . . . . . . . . . . . . . . 10 . . . . . 4 . . 7 . Recycling Units 14 | . 4 . 2 . . . 3 . 2 . . . . . . . . . . . . . . . . . 1 . . . . 2 . . . . . Scanalyzers 18 | . . . 7 . . . . . 9 . . . . . . . . . . . . . . . . . . . . . . . . . . 2 . Garrison Access 25 | . . . . . . . 5 . 4 . . . . 3 . . . . . . . . . . 3 . 4 . . . . . 2 . . 2 2 Terminal Hacks 92 | . 2 1 5 . 2 . 2 3 1 2 . 25 . 2 1 . . . . . 1 . 3 . . 1 5 . 5 17 . 2 1 . . 6 5 Record 21 | . . . . . 1 . . . . 1 . 6 . . . . . . . . . . 3 . . . . . 5 5 . . . . . . . Part Schematic 16 | . . . . . . . . . . . . 12 . . . . . . . . . . . . . . . . . 4 . . . . . . . Robot Schematic 4 | . . . . . . . . . . . . 4 . . . . . . . . . . . . . . . . . . . . . . . . . Robot Analysis 12 | . 2 . 1 . . . 2 . . . . . . 1 . . . . . . . . . . . . . . . 4 . 1 . . . 1 . Prototype ID Bank 11 | . . . 2 . . . . . . . . 3 . 1 . . . . . . . . . . . . . . . 4 . . . . . 1 . Open Door 6 | . . 1 . . . . . . . 1 . . . . 1 . . . . . 1 . . . . . . . . . . . . . . . 2 Branch Access Points 1 | . . . . . . . . . . . . . . . . . . . . . . . . . . . 1 . . . . . . . . . . Emergency Access Points 1 | . . . . . . . . 1 . . . . . . . . . . . . . . . . . . . . . . . . . . . . . Unreport Threat 7 | . . . . . . . . . . . . . . . . . . . . . . . . . . . 2 . . . . . 1 . . 2 2 Locate Traps 4 | . . . 1 . . . . . . . . . . . . . . . . . . . . . . . 1 . . . . . . . . 2 . Reprogram Traps 1 | . . . 1 . . . . . . . . . . . . . . . . . . . . . . . . . . . . . . . . . . Registered Components 2 | . . . . . . . . . 1 . . . . . . . . . . . . . . . . . . . . . . 1 . . . . . Zone Layout 2 | . . . . . . . . . . . . . . . . . . . . . . . . . . . 1 . . . . . . . . . 1 Garrison Registry 2 | . . . . . . . . 1 . . . . . . . . . . . . . . . . . 1 . . . . . . . . . . . Security Stations 1 | . . . . . . . . 1 . . . . . . . . . . . . . . . . . . . . . . . . . . . . . EX-Prototype ID Bank 1 | . . . . . 1 . . . . . . . . . . . . . . . . . . . . . . . . . . . . . . . . Fabricator Hacks 1 | . . . . . . . . . . . . . . 1 . . . . . . . . . . . . . . . . . . . . . . . Network Status 1 | . . . . . . . . . . . . . . 1 . . . . . . . . . . . . . . . . . . . . . . . Repair Station Hacks 18 | . . . . . . . 2 . 3 . . . . . . . . . . . . . . . . . 7 . . . . . 2 . . 4 . Scan Component 11 | . . . . . . . 1 . 2 . . . . . . . . . . . . . . . . . 4 . . . . . 1 . . 3 . Repair 7 | . . . . . . . 1 . 1 . . . . . . . . . . . . . . . . . 3 . . . . . 1 . . 1 . Recycling Unit Hacks 5 | . 1 . 1 . . . 1 . 1 . . . . . . . . . . . . . . . . . . . . . . 1 . . . . . Retrieve Components 5 | . 1 . 1 . . . 1 . 1 . . . . . . . . . . . . . . . . . . . . . . 1 . . . . . Scanalyzer 11 | . . . 5 . . . . . 5 . . . . . . . . . . . . . . . . . . . . . . . . . . 1 . Insert Component 4 | . . . 1 . . . . . 2 . . . . . . . . . . . . . . . . . . . . . . . . . . 1 . Analyze 7 | . . . 4 . . . . . 3 . . . . . . . . . . . . . . . . . . . . . . . . . . . . Garrison Access Hacks 13 | . . . . . . . 1 . . . . . . 1 . . . . . . . . . . 1 . 4 . . . . . 2 . . 2 2 Unlock Access 3 | . . . . . . . 1 . . . . . . . . . . . . . . . . . 1 . . . . . . . 1 . . . . Seal Access 5 | . . . . . . . . . . . . . . 1 . . . . . . . . . . . . 2 . . . . . . . . 1 1 Coupler Status 5 | . . . . . . . . . . . . . . . . . . . . . . . . . . . 2 . . . . . 1 . . 1 1 Unauthorized Hacks 20 | . 1 . 1 . . . 3 . 3 . . . . 2 . . . . . 1 . . . . 1 . . . . . . 1 1 . . 3 3 Terminals 12 | . . . . . . . 2 . 2 . . . . 1 . . . . . 1 . . . . . . . . . . . . 1 . . 2 3 Track 1 | . . . . . . . . . . . . . . . . . . . . . . . . . . . . . . . . . . . . . 1 Botnet 11 | . . . . . . . 2 . 2 . . . . 1 . . . . . 1 . . . . . . . . . . . . 1 . . 2 2 Fabricators 1 | . . . . . . . . . . . . . . 1 . . . . . . . . . . . . . . . . . . . . . . . Fabnet 1 | . . . . . . . . . . . . . . 1 . . . . . . . . . . . . . . . . . . . . . . . Repair Stations . | . . . . . . . . . . . . . . . . . . . . . . . . . . . . . . . . . . . . . . Recycling Units 4 | . 1 . 1 . . . . . 1 . . . . . . . . . . . . . . . . . . . . . . 1 . . . . . Mask 3 | . . . 1 . . . . . 1 . . . . . . . . . . . . . . . . . . . . . . 1 . . . . . Tunnel 1 | . 1 . . . . . . . . . . . . . . . . . . . . . . . . . . . . . . . . . . . . Scanalyzers 1 | . . . . . . . . . . . . . . . . . . . . . . . . . . . . . . . . . . . . 1 . Researchers 1 | . . . . . . . . . . . . . . . . . . . . . . . . . . . . . . . . . . . . 1 . Garrison Access 2 | . . . . . . . 1 . . . . . . . . . . . . . . . . . 1 . . . . . . . . . . . . Reprogram 2 | . . . . . . . 1 . . . . . . . . . . . . . . . . . 1 . . . . . . . . . . . . Data Cores Recovered 1 | . . . . . . . . . . . . . . . . . . . . . . . . . . . 1 . . . . . . . . . . Used 1 | . . . . . . . . . . . . . . . . . . . . . . . . . . . 1 . . . . . . . . . . Hacking Detections 75 | . 4 . 5 . . . 5 3 10 . . . . 5 . . . . . 1 . . . . . 1 13 . . . . 3 7 . . 13 5 Full Trace Events 13 | . 2 . 2 . . . 2 . . . . . . 1 . . . . . 1 . . . . . . . . . . . . 1 . . 4 . Feedback Events . | . . . . . . . . . . . . . . . . . . . . . . . . . . . . . . . . . . . . . . Feedback Blocked . | . . . . . . . . . . . . . . . . . . . . . . . . . . . . . . . . . . . . . . Robot Schematics Acquired 10 | . . . . . . . . . . . . 4 . . . . 3 . . . . . . . . . . . . . . . 1 . . 2 . Robots Built . | . . . . . . . . . . . . . . . . . . . . . . . . . . . . . . . . . . . . . . Authchips . | . . . . . . . . . . . . . . . . . . . . . . . . . . . . . . . . . . . . . . Time . | . . . . . . . . . . . . . . . . . . . . . . . . . . . . . . . . . . . . . . Total Robot Build Rating . | . . . . . . . . . . . . . . . . . . . . . . . . . . . . . . . . . . . . . . Part Schematics Acquired 42 | . . . 1 . . . . . . . . 12 . . . . 14 . . . . . . . . . . . . 4 . . 8 . . 3 . Parts Built . | . . . . . . . . . . . . . . . . . . . . . . . . . . . . . . . . . . . . . . Authchips . | . . . . . . . . . . . . . . . . . . . . . . . . . . . . . . . . . . . . . . Time . | . . . . . . . . . . . . . . . . . . . . . . . . . . . . . . . . . . . . . . Total Part Build Rating . | . . . . . . . . . . . . . . . . . . . . . . . . . . . . . . . . . . . . . . Parts Repaired 7 | . . . . . . . 1 . 1 . . . . . . . . . . . . . . . . . 3 . . . . . 1 . . 1 . Time 319 | . . . . . . . 44 . 16 . . . . . . . . . . . . . . . . . 180 . . . . . 25 . . 54 . Parts Recycled . | . . . . . . . . . . . . . . . . . . . . . . . . . . . . . . . . . . . . . . Recycled Matter . | . . . . . . . . . . . . . . . . . . . . . . . . . . . . . . . . . . . . . . Retrieved Matter . | . . . . . . . . . . . . . . . . . . . . . . . . . . . . . . . . . . . . . . Retrieved Components 27 | . 4 . 9 . . . 10 . 1 . . . . . . . . . . . . . . . . . . . . . . 3 . . . . . Parts Scanalyzed 2 | . . . 1 . . . . . 1 . . . . . . . . . . . . . . . . . . . . . . . . . . . . Part Schematics Acquired 1 | . . . 1 . . . . . . . . . . . . . . . . . . . . . . . . . . . . . . . . . . Parts Damaged . | . . . . . . . . . . . . . . . . . . . . . . . . . . . . . . . . . . . . . . Bothacking | -11 -10 -10 -9 -9 -9 -8 -8 -8 -7 -7 -7 -7 -6 -6 -6 -6 -6 -6 -5 -5 -5 -5 -5 -4 -4 -4 -4 -4 -4 -4 -3 -3 -3 -3 -2 -2 -2 ------------ Run | Scr Mat Min Mat Min Exi Min Mat Gar Fac Low Low Dat Pro Fac Low Low Zio Dee Pro Fac Upp Upp War Pro Fac Gar Fac Upp Upp Zhi Pro Res Tes Gar Res Qua Sec Used RIF Installer 1 | . . . . . . . . . . . . . . . . . . . . . . . . . . 1 . . . . . . . . . . . Robots Hacked 19 | . . . . . 4 . . . . . . 1 1 . . . . . . . . . 1 . . . 7 . . 3 . . 1 . . . 1 Non-combat 9 | . . . . . 3 . . . . . . . . . . . . . . . . . . . . . 6 . . . . . . . . . . Combat 10 | . . . . . 1 . . . . . . 1 1 . . . . . . . . . 1 . . . 1 . . 3 . . 1 . . . 1 Robot Hacks Applied 23 | . . . . . 4 . . . . . . 1 1 . . . . . . . . . . . . . 11 . . 3 . . 2 . . . 1 parse_system 9 | . . . . . 4 . . . . . . 1 1 . . . . . . . . . . . . . . . . 3 . . . . . . . generate_echo 1 | . . . . . . . . . . . . . . . . . . . . . . . . . . . 1 . . . . . . . . . . map_walls 1 | . . . . . . . . . . . . . . . . . . . . . . . . . . . 1 . . . . . . . . . . drop_inventory 2 | . . . . . . . . . . . . . . . . . . . . . . . . . . . 2 . . . . . . . . . . purge_threat 6 | . . . . . . . . . . . . . . . . . . . . . . . . . . . 6 . . . . . . . . . . reprogram_traps 1 | . . . . . . . . . . . . . . . . . . . . . . . . . . . 1 . . . . . . . . . . locate_prototypes 1 | . . . . . . . . . . . . . . . . . . . . . . . . . . . . . . . . . 1 . . . . formatsys_low 1 | . . . . . . . . . . . . . . . . . . . . . . . . . . . . . . . . . 1 . . . . formatsys_high 1 | . . . . . . . . . . . . . . . . . . . . . . . . . . . . . . . . . . . . . 1 Relay Couplers Released 19 | . . . . . . . . . . . . . . . . . . . . . . . . . . 4 2 . . . . . 4 5 4 . . Machine Destruction 8 | . . . . . . . . . . . . . . . . . . . . . . . . . . . 2 . . . . . . 5 1 . . Programmers 11 | . . . . . . . . . . . . . . . . . . . . . . . . . . 4 . . . . . . 4 . 3 . . Attached 7 | . . . . . . . . . . . . . . . . . . . . . . . . . . . 3 . . . . . 1 . . . 3 Fabnet Peak Effective % 3 | . . . . . . . . . . . . . . . . . . . 3 3 3 3 3 1 1 1 1 1 1 1 . . . . . . . Autooverrided 2 | . . . . . . . . . . . . . . . . . . . . . . . 1 . . . 1 . . . . . . . . . . Robots Rewired 19 | . . . . . . . . . . . . . . . . . . . . . . . 5 . . 11 . . . . . . 2 . . . 1 Allies Hacked . | . . . . . . . . . . . . . . . . . . . . . . . . . . . . . . . . . . . . . . Hacks Repelled . | . . . . . . . . . . . . . . . . . . . . . . . . . . . . . . . . . . . . . . Allies | -11 -10 -10 -9 -9 -9 -8 -8 -8 -7 -7 -7 -7 -6 -6 -6 -6 -6 -6 -5 -5 -5 -5 -5 -4 -4 -4 -4 -4 -4 -4 -3 -3 -3 -3 -2 -2 -2 -------- Run | Scr Mat Min Mat Min Exi Min Mat Gar Fac Low Low Dat Pro Fac Low Low Zio Dee Pro Fac Upp Upp War Pro Fac Gar Fac Upp Upp Zhi Pro Res Tes Gar Res Qua Sec Total Allies 34 | . . . . . . . 1 . . . . . 1 . . 1 3 . . . . . 6 . 2 11 2 . . . . . 3 2 . . 2 Largest Group 16 | . . . . . . . . 1 . . . . 1 1 1 1 4 4 . . . . 5 3 3 16 12 . . . . . 2 2 . . 1 Highest-Rated Group 702 | . . . . . . . . 15 . . . . 96 96 96 99 186 186 . . . . 261 166 159 702 494 . . . . . 158 75 . . 219 Highest-Rated Ally 219 | . . . . . . . . 15 . . . . 96 96 96 99 99 99 . . . . 68 68 61 61 56 . . . . . 79 46 . . 219 Warlord Squad Rendezvous 1 | . . . . . . . . . . . . . . 1 . . . . . . . . . . . . . . . . . . . . . . . Infantry 1 | . . . . . . . . . . . . . . 1 . . . . . . . . . . . . . . . . . . . . . . . Total Orders 19 | . . . . . 4 . . . . . . . . . . 1 . . . 1 . . 2 2 . 2 4 2 . . . . . . . . 1 STAY 4 | . . . . . . . . . . . . . . . . . . . . . . . 1 1 . 1 . . . . . . . . . . 1 FOLLOW 3 | . . . . . . . . . . . . . . . . . . . . . . . 1 1 . 1 . . . . . . . . . . . EXPLORE 2 | . . . . . . . . . . . . . . . . . . . . . . . . . . . . 2 . . . . . . . . . RETURN 10 | . . . . . 4 . . . . . . . . . . 1 . . . 1 . . . . . . 4 . . . . . . . . . . Ally Attacks 368 | . . . . . 39 . . 15 . . . . 11 . 12 5 . 42 . . . . 51 11 . 44 79 . . . . . 24 . . . 35 Total Damage 12171 | . . . . . 249 . . 290 . . . . 332 . 366 32 . 1233 . . . . 2462 480 . 967 2353 . . . . . 1183 . . . 2224 Kills 60 | . . . . . . . . 2 . . . . 3 . 2 1 . 5 . . . . 14 5 . 3 15 . . . . . . . . . 10 Allies Corrupted 1 | . . . . . . . . . . . . . . . . . . . . . . . . . . . 1 . . . . . . . . . . Allies Melted 2 | . . . . . . . . . . . . . . . . . . . . . . . . . . . . . . . . . . . 2 . . Intel | -11 -10 -10 -9 -9 -9 -8 -8 -8 -7 -7 -7 -7 -6 -6 -6 -6 -6 -6 -5 -5 -5 -5 -5 -4 -4 -4 -4 -4 -4 -4 -3 -3 -3 -3 -2 -2 -2 ------- Run | Scr Mat Min Mat Min Exi Min Mat Gar Fac Low Low Dat Pro Fac Low Low Zio Dee Pro Fac Upp Upp War Pro Fac Gar Fac Upp Upp Zhi Pro Res Tes Gar Res Qua Sec Robot Analysis Total 12 | . 2 . 1 . . . 2 . . . . . . 1 . . . . . . . . . . . . . . . 4 . 1 . . . 1 . Derelict Logs Recovered 19 | . . 1 . 2 . . . . . 1 1 . . . 1 1 2 . . . 2 1 . 2 . . . 3 2 . . . . . . . . Drone Launches 22 | . . . . . 11 . . . . . . . . . . 4 . . . 1 . . . . . . 4 2 . . . . . . . . . Drone Recoveries 19 | . . . . . 10 . . . . . . . . . . 4 . . . 1 . . . . . . 4 . . . . . . . . . . Exploration | -11 -10 -10 -9 -9 -9 -8 -8 -8 -7 -7 -7 -7 -6 -6 -6 -6 -6 -6 -5 -5 -5 -5 -5 -4 -4 -4 -4 -4 -4 -4 -3 -3 -3 -3 -2 -2 -2 ------------- Run | Scr Mat Min Mat Min Exi Min Mat Gar Fac Low Low Dat Pro Fac Low Low Zio Dee Pro Fac Upp Upp War Pro Fac Gar Fac Upp Upp Zhi Pro Res Tes Gar Res Qua Sec Turns Passed 66139 | 8 611 833 1388 663 2195 2674 1845 1699 1408 2525 5402 224 1276 697 2500 3324 1712 3896 1050 275 2567 2377 1642 2219 68 788 3276 1105 2283 401 965 343 1945 1202 1542 4571 2640 Spaces Moved 28163 | 3 284 474 634 390 883 916 531 642 528 1461 2955 93 746 277 1013 1293 806 1333 482 109 1174 1076 689 949 38 399 1351 544 852 151 458 155 747 385 743 1635 964 Core 2 | . . . . . . . . . . . . . . . . . . . . . . . . . . . . . . . . . . . . . 2 Treads 14543 | 3 284 474 501 390 883 916 531 642 528 1461 2955 93 746 277 1013 1293 806 744 . . . . . . . . . . . . . . . . . 1 2 Legs 13618 | . . . 133 . . . . . . . . . . . . . . 589 482 109 1174 1076 689 949 38 399 1351 544 852 151 458 155 747 385 743 1634 960 Wheels . | . . . . . . . . . . . . . . . . . . . . . . . . . . . . . . . . . . . . . . Hover . | . . . . . . . . . . . . . . . . . . . . . . . . . . . . . . . . . . . . . . Flight . | . . . . . . . . . . . . . . . . . . . . . . . . . . . . . . . . . . . . . . Fastest Speed 100 | 160 160 160 120 160 160 240 240 240 160 160 160 240 160 240 240 160 160 160 210 210 210 210 175 175 175 175 179 185 135 185 185 185 185 185 185 185 100 Average Speed 195 | 160 160 160 151 160 209 240 240 240 239 163 161 240 163 240 240 239 210 218 210 210 210 210 201 175 175 176 184 185 183 185 185 185 185 194 185 185 185 Slowest Speed 400 | 160 160 160 160 160 240 240 240 240 240 240 240 240 240 240 240 240 240 240 210 210 210 210 210 175 175 179 185 185 186 185 185 185 185 242 186 340 400 Overloaded Moves . | . . . . . . . . . . . . . . . . . . . . . . . . . . . . . . . . . . . . . . Propulsion Burnouts . | . . . . . . . . . . . . . . . . . . . . . . . . . . . . . . . . . . . . . . Robots Hopped . | . . . . . . . . . . . . . . . . . . . . . . . . . . . . . . . . . . . . . . Cave-ins Triggered 1 | . . . . . . . . . . . . . . . . 1 . . . . . . . . . . . . . . . . . . . . . Teleports 3 | . . . . . . . . . . . . . . . . . . . . . . . . . . . . . . . . . . . 1 1 1 Exploration Rate (%) 65 | 2 50 99 54 60 88 99 48 70 23 93 97 74 77 8 95 99 86 86 62 4 97 95 87 95 1 64 36 94 89 60 71 7 80 40 32 91 65 Regions Visited 37 Branch Regions 24 Pre-discovered Areas 11 | . 1 1 . . 1 . . . . 1 1 1 . . . 1 1 . . . . . . . . . . . . 3 . . . . . . . Known Exits Taken 23 | . . . . . . . 1 . 1 1 1 1 1 1 1 1 1 . . 1 1 1 1 1 1 . 1 1 1 1 1 1 1 . . . . Unknown Exits Taken 11 | 1 1 1 1 1 1 1 . . . . . . . . . . . 1 1 . . . . . . . . . . . . . . . 1 1 . Scrap Searched 40 | . . 1 . 1 . 1 . . . 4 2 . 1 . 3 4 3 . 3 . 4 4 . 2 . . . 4 3 . . . . . . . . Spaces Dug 401 | . . . . . . . . . 1 3 14 . . 3 . . . 2 10 4 12 9 16 . . . 59 38 91 . 21 5 28 47 6 21 11 Terrain Destroyed 1201 | . . . 21 . 34 12 12 3 46 13 18 . 12 3 49 45 . 19 11 7 29 29 17 1 . . 275 74 102 . 37 10 66 124 16 31 85 Melee 35 | . . . . . . . . . 1 3 11 . . 3 . . . . . . . . 2 . . . . . . . . . . . . 4 11 Projectile 427 | . . . . . 8 . . . . . 1 . . . 2 3 . 2 11 7 20 29 15 1 . . 78 16 30 . 37 10 66 47 16 27 1 AOE 738 | . . . 21 . 26 12 12 3 45 10 5 . 12 . 47 42 . 17 . . 9 . . . . . 197 58 72 . . . . 77 . . 73 Terrain Rammed . | . . . . . . . . . . . . . . . . . . . . . . . . . . . . . . . . . . . . . . Walls Destroyed . | . . . . . . . . . . . . . . . . . . . . . . . . . . . . . . . . . . . . . . Machines Disabled . | . . . . . . . . . . . . . . . . . . . . . . . . . . . . . . . . . . . . . . Actions | -11 -10 -10 -9 -9 -9 -8 -8 -8 -7 -7 -7 -7 -6 -6 -6 -6 -6 -6 -5 -5 -5 -5 -5 -4 -4 -4 -4 -4 -4 -4 -3 -3 -3 -3 -2 -2 -2 --------- Run | Scr Mat Min Mat Min Exi Min Mat Gar Fac Low Low Dat Pro Fac Low Low Zio Dee Pro Fac Upp Upp War Pro Fac Gar Fac Upp Upp Zhi Pro Res Tes Gar Res Qua Sec Total 36891 | 5 364 510 928 416 1097 1292 969 755 622 1557 3492 94 785 298 1056 1471 821 2208 507 140 1237 1133 879 1501 38 479 1901 607 1529 274 513 188 1130 721 879 2990 1505 Wait 5709 | . 13 3 137 12 85 307 258 69 29 56 437 . 19 2 2 87 1 657 17 12 29 14 80 527 . 29 305 29 578 104 19 12 175 238 74 1068 225 Move 28125 | 2 283 473 633 389 882 915 531 639 527 1460 2954 92 745 276 1012 1292 805 1332 481 108 1173 1075 688 948 37 397 1350 543 851 150 457 154 747 384 742 1634 964 Hop . | . . . . . . . . . . . . . . . . . . . . . . . . . . . . . . . . . . . . . . Pick Up 269 | . 10 3 16 3 17 6 13 1 5 5 24 . 2 3 5 15 4 38 1 . 1 2 4 1 . 8 7 1 20 3 . 2 16 2 6 21 4 Fast Attach 192 | . 6 1 12 . 2 1 4 1 9 1 3 . . . . 3 1 10 . 2 2 3 8 2 . 2 8 . 4 3 . 1 17 8 10 32 36 Attach 88 | . . 1 5 . 6 . 5 . 4 1 3 . . 2 . 7 1 7 . 1 . 2 2 . . . 1 . . 2 . 1 4 . 3 6 24 Detach 176 | . 2 . 2 . 3 1 1 . 1 1 4 . . . . 2 1 16 . 4 2 1 7 9 . 3 8 3 12 2 . 2 12 12 6 36 23 Swap 315 | 3 . 1 13 1 11 5 14 4 13 11 14 1 8 8 14 11 3 23 . 3 7 1 3 5 . 5 36 11 8 2 7 2 23 4 8 19 13 Drop 355 | . 3 3 24 3 11 3 20 3 9 5 7 . 1 2 5 14 4 52 1 1 2 4 9 3 . 7 11 . 25 5 . . 29 6 14 47 22 Fire 1186 | . 40 21 78 7 73 49 68 26 19 8 8 . 9 . 17 37 . 53 7 8 19 31 37 4 1 22 162 20 31 3 30 14 105 67 16 75 21 Melee 289 | . . . . . 4 . . . 1 9 38 1 1 5 . . 1 13 . . . . 6 . . . . . . . . . . . . 44 166 Ram 7 | . . . . . . . . . . . . . . . . . . . . . . . . . . . . . . . . . . . . . 7 Kick 21 | . . . . . . . . . . . . . . . . . . . . 1 . . . 2 . . 13 . . . . . 2 . . 3 . Crush 40 | . 7 4 8 1 . 5 4 . 5 . . . . . 1 . . 5 . . . . . . . . . . . . . . . . . . . Escape Stasis 17 | . . . . . . . . 12 . . . . . . . . . . . . . . . . . . . . . . . . . . . 5 . Rewire 42 | . . . . . . . . . . . . . . . . . . 1 . . . . 35 . . 6 . . . . . . . . . . . Trap 60 | . . . . . 3 . 51 . . . . . . . . 3 . 1 . . 2 . . . . . . . . . . . . . . . . Miscellaneous . | . . . . . . . . . . . . . . . . . . . . . . . . . . . . . . . . . . . . . . Route ------- -11/Scrapyard -10/Materials (discovered 2 exits: *Mat / *Min) -10/Mines (discovered 2 exits: *Mat x2) -9/Materials (discovered 3 exits: *Mat / [*Min x2]) -9/Mines (discovered 3 exits: *Mat x2 / *Exi) -9/Exiles -8/Mines (discovered 2 exits: *Mat x2) -8/Materials (discovered 3 exits: *Fac / Sto / Gar) -8/Garrison (discovered 3 exits: *Fac x3) -7/Factory -7/Lower Caves -7/Lower Caves (discovered 2 exits: *Fac / *Dat) -7/Data Miner -6/Proximity Caves -6/Factory -6/Lower Caves (discovered 2 exits: *Low / *Zio) -6/Lower Caves (discovered 2 exits: *Fac / *Zio) -6/Zion (discovered 2 exits: *Dee / [*Pro]) -6/Deep Caves -5/Proximity Caves -5/Factory (discovered 2 exits: Fac / *Upp) -5/Upper Caves -5/Upper Caves (discovered 2 exits: *Fac / *War) -5/Warlord -4/Proximity Caves -4/Factory (discovered 3 exits: Res / Arm / Gar) -4/Garrison (discovered 3 exits: *Fac x3) -4/Factory (discovered 6 exits: *Res / *Upp x2 / *Ext x2 / Arm) -4/Upper Caves -4/Upper Caves (discovered 2 exits: *Res / *Zhi) -4/Zhirov -3/Proximity Caves -3/Research (discovered 2 exits: Res / *Tes) -3/Testing -3/Garrison -2/Research -2/Quarantine (discovered 2 exits: [*Acc] / *Sec) -2/Section 7 History --------- Turn | Location | Event 6 | -11/Scrapyard | Discovered new exit (range 2) 9 | -11/Scrapyard | Entered Materials 310 | -10/Materials | Build established: Mutant 344 | -10/Materials | Discovered new exit (range 13) 396 | -10/Materials | Discovered new exit (range 15) 620 | -10/Materials | Entered Mines 760 | -10/Mines | Discovered new exit (range 15) 772 | -10/Mines | YI-UF0 nonchalantly dropped a Grenade Launcher on the ground 816 | -10/Mines | Destroyed YI-UF0 865 | -10/Mines | Discovered new exit (range 9) 1051 | -10/Mines | Found a damaged Exp. Sensor Array with a note attached 1055 | -10/Mines | Found Prototype Device 1086 | -10/Mines | Learned location of Storage (-8) 1255 | -10/Mines | Found the Drone Emporium 1263 | -10/Mines | Found Prototype Device 1263 | -10/Mines | Identified Thief Drone Bay 1453 | -10/Mines | Entered Materials 1453 | -9/Materials | Evolved 2 slots: Propulsion x1, Utility x1 1768 | -9/Materials | Discovered new exit (range 16) 1899 | -9/Materials | Build established: Scavenger-Mutant 2445 | -9/Materials | Discovered new exit (range 7) 2540 | -9/Materials | Identified Exp. Sensor Array 2546 | -9/Materials | Build established: Mutant 2605 | -9/Materials | Discovered new exit (range 16) 2841 | -9/Materials | Entered Mines 2842 | -9/Mines | Met a Derelict bent on vengeance 3005 | -9/Mines | Discovered new exit (range 2) 3049 | -9/Mines | Build established: Scavenger-Mutant 3223 | -9/Mines | Discovered new exit (range 8) 3363 | -9/Mines | Found a hidden stash of uninstalled traps 3496 | -9/Mines | Deemed a non-threat by the Exiles lab entrance 3498 | -9/Mines | Discovered new exit (range 5) 3504 | -9/Mines | Entered Exiles 3563 | -9/Exiles | Met 8R-AWN 3607 | -9/Exiles | Met EX-HEX 3771 | -9/Exiles | Met EX-DEC 3839 | -9/Exiles | Learned location of Zion (-6) 3865 | -9/Exiles | Build established: Mutant 3880 | -9/Exiles | Met EX-BIN 4022 | -9/Exiles | Aligned with FarCom system 4025 | -9/Exiles | Given EX-Vault access code 4082 | -9/Exiles | Opened EX-Vault 4135 | -9/Exiles | Warned to stay clear of 0b10 Research branches 4360 | -9/Exiles | Attacked by the Exiles 4537 | -9/Exiles | Destroyed 8R-AWN 4566 | -9/Exiles | Found 8R-AWN's Boregun 4633 | -9/Exiles | Found 8R-AWN's Boregun 4673 | -9/Exiles | Lost 4 parts (1p1n1u1w) 4809 | -9/Exiles | Destroyed EX-BIN 4936 | -9/Exiles | Destroyed EX-HEX 4978 | -9/Exiles | Destroyed EX-DEC 5065 | -9/Exiles | Found System Purifier 5190 | -9/Exiles | Found Exp. Targeting Computer 5218 | -9/Exiles | Discovered new exit (range 14) 5268 | -9/Exiles | Found 8R-AWN's Armor/EX 5394 | -9/Exiles | Build established: Scavenger-Mutant 5463 | -9/Exiles | Found Exp. Core Analyzer 5699 | -9/Exiles | Entered Mines 6514 | -8/Mines | Discovered new exit (range 6) 6703 | -8/Mines | Discovered new exit (range 15) 8373 | -8/Mines | Entered Materials 8373 | -8/Materials | Evolved 2 slots: Utility x2 8374 | -8/Materials | Identified exit to Storage 9562 | -8/Materials | Repaired Gauss Rifle 10190 | -8/Materials | Discovered new exit (range 16) 10214 | -8/Materials | Identified exit to Garrison 10218 | -8/Materials | Entered Garrison 10218 | -8/Garrison | Accompanied by 1 ally 10331 | -8/Garrison | Triggered checkpoint 10428 | -8/Garrison | Triggered checkpoint 10534 | -8/Garrison | Triggered checkpoint 10654 | -8/Garrison | Learned Factory security intel 10733 | -8/Garrison | Discovered new exit (range 12) 10976 | -8/Garrison | Triggered checkpoint 11204 | -8/Garrison | Discovered new exit (range 8) 11297 | -8/Garrison | Triggered checkpoint 11477 | -8/Garrison | Discovered new exit (range 49) 11477 | -8/Garrison | Discovered new exit (range 12) 11477 | -8/Garrison | Discovered new exit (range 43) 11515 | -8/Garrison | Attempted to access garrison exit controls, blocked by remote lockdown 11602 | -8/Garrison | Triggered checkpoint 11715 | -8/Garrison | Attempted to access garrison exit controls, blocked by remote lockdown 11917 | -8/Garrison | Entered Factory 11917 | -7/Factory | Evolved 2 slots: Propulsion x1, Utility x1 11918 | -7/Factory | Identified exit to Lower Caves 12017 | -7/Factory | Repaired Hvy. Assault Rifle 13325 | -7/Factory | Entered Lower Caves 13327 | -7/Lower Caves | Attracted the attention of an 0b10 checkpoint 13369 | -7/Lower Caves | Met a Warlord Commander 13370 | -7/Lower Caves | Learned location of Warlord (-5) 13373 | -7/Lower Caves | Found Encrypted Comm Array 13704 | -7/Lower Caves | Build established: Mutant 14046 | -7/Lower Caves | Encountered a Warlord checkpoint 14440 | -7/Lower Caves | Discovered new exit (range 15) 14465 | -7/Lower Caves | Identified exit to Lower Caves 14630 | -7/Lower Caves | Learned Factory machine intel 15763 | -7/Lower Caves | Found Prototype Device 15850 | -7/Lower Caves | Entered another Lower Caves area 15900 | -7/Lower Caves | Discovered new exit (range 13) 15921 | -7/Lower Caves | Identified exit to Factory 16945 | -7/Lower Caves | Discovered new exit (range 7) 16981 | -7/Lower Caves | Encountered a Warlord checkpoint 18975 | -7/Lower Caves | Identified Heart of Steel 21139 | -7/Lower Caves | Found AS-neutralizer No. 17b 21245 | -7/Lower Caves | Identified exit to Data Miner 21252 | -7/Lower Caves | Entered Data Miner 21252 | -7/Data Miner | Discovered new exit (range 6) 21298 | -7/Data Miner | Met Data Miner 21373 | -7/Data Miner | Learned location of Section 7 (-2) 21373 | -7/Data Miner | Acquired the access code to Warlord's prototype stash 21412 | -7/Data Miner | Received God Mode back door access code from Data Miner 21471 | -7/Data Miner | Identified exit to Proximity Caves 21476 | -7/Data Miner | Entered Proximity Caves 21777 | -6/Proximity Caves | Escorted by Enhanced Grunt 22105 | -6/Proximity Caves | Attracted the attention of an 0b10 checkpoint 22217 | -6/Proximity Caves | Discovered exit to Factory (range 12) 22752 | -6/Proximity Caves | Entered Factory 22752 | -6/Factory | Accompanied by 1 ally 22752 | -6/Factory | Evolved 2 slots: Power x1, Utility x1 22753 | -6/Factory | Loaded intel: 306 machine locations 23060 | -6/Factory | Build established: Scavenger-Mutant 23086 | -6/Factory | Joined by Warlord Infantry squad 23309 | -6/Factory | Found Exp. Targeting Computer 23358 | -6/Factory | Discovered new exit (range 15) 23391 | -6/Factory | Identified exit to Lower Caves 23449 | -6/Factory | Entered Lower Caves 23449 | -6/Lower Caves | Accompanied by 1 ally 23512 | -6/Lower Caves | Encountered a Warlord checkpoint 23769 | -6/Lower Caves | Build established: Mutant 23782 | -6/Lower Caves | A Derelict revealed a hidden shortcut to a safe place 23785 | -6/Lower Caves | Identified exit to Zion 23847 | -6/Lower Caves | Attracted the attention of an 0b10 checkpoint 24217 | -6/Lower Caves | Discovered new exit (range 15) 24316 | -6/Lower Caves | Identified exit to Lower Caves 24386 | -6/Lower Caves | Learned 4 Factory zone layouts 25949 | -6/Lower Caves | Entered another Lower Caves area 26458 | -6/Lower Caves | Crushed by falling debris 26767 | -6/Lower Caves | Discovered new exit (range 9) 27195 | -6/Lower Caves | Encountered a Warlord checkpoint 27473 | -6/Lower Caves | Discovered exit to Zion (range 6) 28350 | -6/Lower Caves | Spotted B-75 Beast 28415 | -6/Lower Caves | Allies destroyed B-75 Beast 29158 | -6/Lower Caves | Heart of Steel transformed into Warbot 29273 | -6/Lower Caves | Entered Zion 29273 | -6/Zion | Accompanied by 1 ally (Warbot) 29549 | -6/Zion | Discovered new exit (range 8) 29592 | -6/Zion | Gained Derelict followers 29805 | -6/Zion | Given A8's code to call for help 29834 | -6/Zion | Learned Factory terminal intel 29903 | -6/Zion | Given the Hacking Drone Bay 29903 | -6/Zion | Found Prototype Device 29903 | -6/Zion | Identified Hacking Drone Bay 29947 | -6/Zion | Identified exit to Deep Caves 30405 | -6/Zion | Acquired unknown access codes intercepted by a Zionite 30679 | -6/Zion | Found GAL Module 30918 | -6/Zion | Opened final containment barrier to the Deep Caves 30978 | -6/Zion | Saw the warning signs outside the Deep Caves entrance 30985 | -6/Zion | Entered Deep Caves 30985 | -6/Deep Caves | Accompanied by 4 allies (Warbot) 31416 | -6/Deep Caves | Attacked by Z-Imprinter 31422 | -6/Deep Caves | Allies destroyed Z-Imprinter 31447 | -6/Deep Caves | Found Prototype Protection 31447 | -6/Deep Caves | Identified Zio. Weapon Casing 31611 | -6/Deep Caves | Z-Facility disabled 31674 | -6/Deep Caves | Found Prototype Protection 31674 | -6/Deep Caves | Identified Zio. Heavy Carapace 31695 | -6/Deep Caves | Found Zio. Weapon Casing 32333 | -6/Deep Caves | Discovered new exit (range 6) 32581 | -6/Deep Caves | Spotted as-69141 32592 | -6/Deep Caves | Destroyed as-69141 32667 | -6/Deep Caves | Triggered Deep Caves wall 32680 | -6/Deep Caves | Spotted AS-27428 32697 | -6/Deep Caves | Spotted AS-52958 32713 | -6/Deep Caves | Destroyed AS-52958 32713 | -6/Deep Caves | Exposed GOLEM chamber 32734 | -6/Deep Caves | Destroyed AS-27428 32766 | -6/Deep Caves | Spotted as-23396 32783 | -6/Deep Caves | Destroyed as-23396 32800 | -6/Deep Caves | Found GOLEM Unit 32812 | -6/Deep Caves | Lost 3 parts (1p2u) 32921 | -6/Deep Caves | Build established: Scavenger-Mutant 33275 | -6/Deep Caves | Found GOLEM Unit 33284 | -6/Deep Caves | Found GOLEM Unit 33709 | -6/Deep Caves | Build established: Golem 33945 | -6/Deep Caves | Found Zio. Heavy Carapace 33948 | -6/Deep Caves | Found Zio. Heavy Carapace 34881 | -6/Deep Caves | Entered Proximity Caves 35481 | -5/Proximity Caves | Spotted B-75 Beast 35487 | -5/Proximity Caves | Destroyed B-75 Beast 35805 | -5/Proximity Caves | Discovered new exit (range 5) 35931 | -5/Proximity Caves | Entered Factory 35931 | -5/Factory | Evolved 2 slots: Utility x2 35932 | -5/Factory | Identified exit to Factory 35933 | -5/Factory | Loaded intel: 26 terminal locations 36038 | -5/Factory | Discovered new exit (range 13) 36087 | -5/Factory | Identified exit to Upper Caves 36206 | -5/Factory | Entered Upper Caves 37091 | -5/Upper Caves | Spotted B-75 Beast 37511 | -5/Upper Caves | Discovered new exit (range 9) 38770 | -5/Upper Caves | Identified exit to Upper Caves 38773 | -5/Upper Caves | Entered another Upper Caves area 38832 | -5/Upper Caves | Discovered exit to Factory (range 5) 39704 | -5/Upper Caves | Attracted the attention of an 0b10 checkpoint 39754 | -5/Upper Caves | Learned location of 1 exit from Factory 40102 | -5/Upper Caves | Discovered new exit (range 8) 40117 | -5/Upper Caves | Identified exit to Warlord 41150 | -5/Upper Caves | Entered Warlord 42031 | -5/Warlord | Learned 4 Command zone layouts 42033 | -5/Warlord | Learned Testing trap positions 42033 | -5/Warlord | Learned Testing stockpile data 42278 | -5/Warlord | Build established: Commander-Golem 42284 | -5/Warlord | Met Warlord 42291 | -5/Warlord | Warlord's base attacked by MAIN.C 42303 | -5/Warlord | Opened Warlord's prototype stash 42313 | -5/Warlord | Found Prototype Reactor 42319 | -5/Warlord | Found Prototype Device 42319 | -5/Warlord | Identified Exp. Cloaking Device 42339 | -5/Warlord | Found Prototype Processor 42339 | -5/Warlord | Identified Exp. Target Analyzer 42342 | -5/Warlord | Found Prototype Device 42342 | -5/Warlord | Identified Exp. Focal Shield 42641 | -5/Warlord | Warlord forces counterattacked 42658 | -5/Warlord | Spotted Striker 42660 | -5/Warlord | Spotted Executioner 42671 | -5/Warlord | Allies destroyed Striker 42687 | -5/Warlord | Spotted Striker 42692 | -5/Warlord | Allies destroyed Striker 42750 | -5/Warlord | Discovered new exit (range 14) 42767 | -5/Warlord | Identified exit to Proximity Caves 42792 | -5/Warlord | Entered Proximity Caves 42792 | -4/Proximity Caves | Accompanied by 3 allies 42815 | -4/Proximity Caves | Learned Research emergency access door positions 43048 | -4/Proximity Caves | Build established: Golem 44125 | -4/Proximity Caves | Discovered exit to Factory (range 4) 44256 | -4/Proximity Caves | Learned 8 Research zone layouts 45011 | -4/Proximity Caves | Entered Factory 45011 | -4/Factory | Accompanied by 3 allies 45011 | -4/Factory | Evolved 2 slots: Utility x2 45012 | -4/Factory | Identified exit to Armory 45013 | -4/Factory | Identified exit to Research 45071 | -4/Factory | Identified exit to Garrison 45079 | -4/Factory | Entered Garrison 45079 | -4/Garrison | Discovered recently destroyed garrison 45079 | -4/Garrison | Accompanied by 5 allies 45284 | -4/Garrison | Installed Relay Interface Framework 45388 | -4/Garrison | Discovered new exit (range 61) 45388 | -4/Garrison | Discovered new exit (range 13) 45388 | -4/Garrison | Discovered new exit (range 101) 45436 | -4/Garrison | Build established: Commander-Golem 45796 | -4/Garrison | Found Relay Coupler [Proto] 45799 | -4/Garrison | Found Relay Coupler [Proto] 45802 | -4/Garrison | Found Relay Coupler [Proto] 45805 | -4/Garrison | Found Relay Coupler [Proto] 45838 | -4/Garrison | Identified exit to Factory 45867 | -4/Garrison | Entered Factory 45867 | -4/Factory | Accompanied by 12 allies 46468 | -4/Factory | Discovered new exit (range 6) 46477 | -4/Factory | Identified exit to Extension 46558 | -4/Factory | Build established: Bothacker-Golem 46617 | -4/Factory | First assault squad dispatched 46762 | -4/Factory | Identified exit to Upper Caves 46857 | -4/Factory | Destroyed 7 combat bots 46908 | -4/Factory | P-70 Sage assimilated allied Administrator 7a 47510 | -4/Factory | Repaired Imp. Medium Armor Plating? 47727 | -4/Factory | Repaired Lyr. Medium Armor Plating 48192 | -4/Factory | Repaired Exp. Sensor Array? 48347 | -4/Factory | Discovered exit to Research (range 5) 49056 | -4/Factory | Destroyed 8 combat bots 49141 | -4/Factory | Incoming assault squad redirected 49143 | -4/Factory | Entered Upper Caves 49213 | -4/Upper Caves | Identified exit to Upper Caves 49568 | -4/Upper Caves | Learned Research emergency access door positions 49580 | -4/Upper Caves | Attracted the attention of an 0b10 checkpoint 49604 | -4/Upper Caves | Learned 8 Research zone layouts 50248 | -4/Upper Caves | Entered another Upper Caves area 50579 | -4/Upper Caves | Discovered exit to Research (range 11) 50836 | -4/Upper Caves | Learned 8 Research zone layouts 51219 | -4/Upper Caves | Learned Extension terminal intel 51491 | -4/Upper Caves | Encountered a Warlord checkpoint 51775 | -4/Upper Caves | Discovered new exit (range 11) 51830 | -4/Upper Caves | Learned 4 Research zone layouts 51841 | -4/Upper Caves | Identified exit to Zhirov 52531 | -4/Upper Caves | Entered Zhirov 52531 | -4/Zhirov | Discovered new exit (range 3) 52565 | -4/Zhirov | Met Zhirov 52610 | -4/Zhirov | Learned location of Quarantine (-2) 52610 | -4/Zhirov | Learned location of Testing (-3) 52610 | -4/Zhirov | Learned location of Command (-1) 52623 | -4/Zhirov | Zhirov requested help retrieving the SGEMP Prototype 52651 | -4/Zhirov | Found Alien Artifact 52651 | -4/Zhirov | Identified Integrated Reactor 52651 | -4/Zhirov | Installed Integrated Reactor, increased core energy generation (+10) 52732 | -4/Zhirov | Found Alien Artifact 52825 | -4/Zhirov | Identified exit to Proximity Caves 52932 | -4/Zhirov | Entered Proximity Caves 53190 | -3/Proximity Caves | Attracted the attention of an 0b10 checkpoint 53779 | -3/Proximity Caves | Discovered exit to Research (range 8) 53897 | -3/Proximity Caves | Entered Research 53897 | -3/Research | Evolved 2 slots: Power x1, Weapon x1 53898 | -3/Research | Identified exit to Research 53898 | -3/Research | Identified exit to Testing 54240 | -3/Research | Entered Testing 54241 | -3/Testing | Loaded intel: 19 trap records 54270 | -3/Testing | Spotted X5-RTD(K) 54274 | -3/Testing | Spotted BZ-AK0(K) 54288 | -3/Testing | Spotted OT-ZCX(K) 54292 | -3/Testing | Rewired BZ-AK0(K) 54295 | -3/Testing | Rewired OT-ZCX(K) 54311 | -3/Testing | Spotted Alpha 7 54323 | -3/Testing | Destroyed Alpha 7 54480 | -3/Testing | Repaired Lyr. Medium Armor Plating 54592 | -3/Testing | Identified Vortex Chain Reactor 54763 | -3/Testing | Spotted PD-9KL6YDPUMD 55204 | -3/Testing | Scanned by Researcher 55229 | -3/Testing | Found Prototype Energy Cannon 55375 | -3/Testing | Found Prototype Launcher 55375 | -3/Testing | Identified Tesla Bomb Launcher 55536 | -3/Testing | Identified Transdimensional Reconstructor 55536 | -3/Testing | Identified Imp. Potential Cannon 55627 | -3/Testing | Found Prototype Device 55627 | -3/Testing | Identified Exp. Actuator Array 55631 | -3/Testing | Found Prototype Device 55631 | -3/Testing | Identified Exp. Thermal Shield 55647 | -3/Testing | Lost 3 parts (1p1u1w) 55725 | -3/Testing | Found Exp. Hardlight Generator 55897 | -3/Testing | Found Exp. Terrain Scanner 55958 | -3/Testing | Found Exp. Terrain Scan Processor 56065 | -3/Testing | Spotted Striker 56072 | -3/Testing | Destroyed Striker 56107 | -3/Testing | Found Prototype Launcher 56113 | -3/Testing | Identified Adv. Micro-nuke Launcher 56167 | -3/Testing | Found Prototype Launcher 56172 | -3/Testing | Identified Hellfire Missile Launcher 56185 | -3/Testing | Identified exit to Garrison 56185 | -3/Testing | Entered Garrison 56191 | -3/Garrison | Triggered checkpoint 56279 | -3/Garrison | Garrison Relay disabled 56342 | -3/Garrison | Triggered checkpoint 56357 | -3/Garrison | Heavy support dispatched to Research 56812 | -3/Garrison | Triggered checkpoint 56846 | -3/Garrison | Discovered exit to Research (range 13) 56981 | -3/Garrison | Rescued a captive Derelict 56982 | -3/Garrison | Rescued a captive Derelict 57155 | -3/Garrison | Heavy support dispatched to Research 57387 | -3/Garrison | Entered Research 57387 | -2/Research | Warlord forces began assault on 0b10 57387 | -2/Research | Evolved 2 slots: Propulsion x2 57424 | -2/Research | Found Unknown Device 57424 | -2/Research | Identified Quantum Capacitor 57497 | -2/Research | Research machine network offline 57847 | -2/Research | Borebot progress halted 57986 | -2/Research | Borebot progress halted 58077 | -2/Research | Spotted B-90 Cyclops 58387 | -2/Research | Spotted Striker 58389 | -2/Research | Warped through subspace 58395 | -2/Research | Borebot progress halted 58513 | -2/Research | Discovered new exit (range 22) 58929 | -2/Research | Entered Quarantine 59021 | -2/Quarantine | Found Alien Artifact 59069 | -2/Quarantine | Identified Core Reset Matrix 59120 | -2/Quarantine | Found Alien Impact Weapon 59192 | -2/Quarantine | Cryocooling Duct disabled 59200 | -2/Quarantine | Cryocooling Duct disabled 59207 | -2/Quarantine | Ambient heat levels rising (+20) 59207 | -2/Quarantine | Non-combat units ordered to evacuate 59215 | -2/Quarantine | Ambient heat levels rising (+20) 59215 | -2/Quarantine | Combat units ordered to evacuate 59315 | -2/Quarantine | Quarantine Guard activated 59442 | -2/Quarantine | Spotted Quarantine Guard 59506 | -2/Quarantine | Destroyed Quarantine Guard 59613 | -2/Quarantine | Spotted Quarantine Guard 59619 | -2/Quarantine | Destroyed Quarantine Guard 59658 | -2/Quarantine | Discovered new exit (range 25) 59718 | -2/Quarantine | Found Alien Artifact 59718 | -2/Quarantine | Identified Phase Redirector 59738 | -2/Quarantine | Spotted Quarantine Guard 59861 | -2/Quarantine | Spotted Quarantine Guard 59884 | -2/Quarantine | Incoming investigation squad redirected 59893 | -2/Quarantine | Destroyed Quarantine Guard 59983 | -2/Quarantine | Spotted Quarantine Guard 59999 | -2/Quarantine | Destroyed Quarantine Guard 60053 | -2/Quarantine | Incoming investigation squad redirected 60064 | -2/Quarantine | Found Alien Slashing Weapon 60064 | -2/Quarantine | Identified Sigix Broadsword 60137 | -2/Quarantine | Spotted Quarantine Guard 60151 | -2/Quarantine | Spotted Quarantine Guard 60156 | -2/Quarantine | Destroyed Quarantine Guard 60170 | -2/Quarantine | Destroyed Quarantine Guard 60325 | -2/Quarantine | Found Alien Artifact 60325 | -2/Quarantine | Identified Terrabomb 60325 | -2/Quarantine | Used Terrabomb 60577 | -2/Quarantine | Destroyed Quarantine Guard 60634 | -2/Quarantine | Spotted Quarantine Guard 61132 | -2/Quarantine | Spotted Fortress 61144 | -2/Quarantine | Identified Core Stripper 61163 | -2/Quarantine | Destroyed Fortress 61194 | -2/Quarantine | Found Prototype Device 61197 | -2/Quarantine | Found Prototype Device 61202 | -2/Quarantine | Identified Exp. Force Field 61233 | -2/Quarantine | Identified Thermal Barrier 61255 | -2/Quarantine | Found Prototype Protection 61257 | -2/Quarantine | Identified Centrium Heavy Armor Plating 61281 | -2/Quarantine | Found Prototype Device 61303 | -2/Quarantine | Identified Exp. EM Disruption Field 61443 | -2/Quarantine | Build established: Bothacker-Mutant 61632 | -2/Quarantine | Spotted Quarantine Guard 61726 | -2/Quarantine | Spotted Quarantine Guard 61757 | -2/Quarantine | Destroyed Quarantine Guard 61862 | -2/Quarantine | Spotted Quarantine Guard 61921 | -2/Quarantine | Destroyed Quarantine Guard 62106 | -2/Quarantine | Repaired Centrium Heavy Armor Plating 62125 | -2/Quarantine | Incoming investigation squad redirected 62366 | -2/Quarantine | Destroyed Quarantine Guard 62453 | -2/Quarantine | Found Alien Artifact 62453 | -2/Quarantine | Identified Hpw. Transdimensional Reconstructor 62453 | -2/Quarantine | Warped through subspace 62627 | -2/Quarantine | Found Hpw. Transdimensional Reconstructor 62638 | -2/Quarantine | Found Alien Artifact 62644 | -2/Quarantine | Found Alien Artifact 62644 | -2/Quarantine | Identified Dimensional Node Initializer (x2) 62644 | -2/Quarantine | Initialized slip node 63069 | -2/Quarantine | Build established: Bothacker-Golem 63430 | -2/Quarantine | Discovered new exit (range 6) 63430 | -2/Quarantine | Spotted Quarantine Guard 63445 | -2/Quarantine | Destroyed Quarantine Guard 63500 | -2/Quarantine | Entered Section 7 63507 | -2/Section 7 | Spotted S7 Guard 63540 | -2/Section 7 | Destroyed S7 Guard 63545 | -2/Section 7 | Found Prototype Protection 63545 | -2/Section 7 | Identified Hvy. Regenerative Plating 63581 | -2/Section 7 | Found Alien Artifact 63601 | -2/Section 7 | Build established: Bothacker-Mutant 63607 | -2/Section 7 | Found Alien Artifact 63607 | -2/Section 7 | Identified Integrated Mediator 63607 | -2/Section 7 | Installed Integrated Mediator, increased core attachment efficiency. 63795 | -2/Section 7 | Spotted S7 Guard 63887 | -2/Section 7 | Found Unknown Piercing Weapon 63887 | -2/Section 7 | Identified Enh. Force Lance 64332 | -2/Section 7 | Found Alien Artifact 64332 | -2/Section 7 | Identified Navigation Efficiency Matrix 64332 | -2/Section 7 | Installed Navigation Efficiency Matrix, process failed with unexpected side effects 64334 | -2/Section 7 | Identified Core Membrane 64334 | -2/Section 7 | Installed Core Membrane, gained immunity to corruption 64491 | -2/Section 7 | Build established: Bothacker-Gladiator 64575 | -2/Section 7 | Destroyed 7 combat bots 64699 | -2/Section 7 | Spotted S7 Guard 64705 | -2/Section 7 | Spotted Alpha 7 64705 | -2/Section 7 | Spotted Alpha 7 64802 | -2/Section 7 | Warped through subspace 64847 | -2/Section 7 | Found Alien Artifact 64847 | -2/Section 7 | Identified LRC Insulator 64847 | -2/Section 7 | Installed LRC Insulator, gained EM resistance (25) 64851 | -2/Section 7 | Found Alien Artifact 64851 | -2/Section 7 | Identified LRC Armor 64851 | -2/Section 7 | Installed LRC Armor, increased core integrity (+250) 64957 | -2/Section 7 | Found Alien Artifact 64957 | -2/Section 7 | Identified Integrated Dissipator 64957 | -2/Section 7 | Installed Integrated Dissipator, increased core heat dissipation (+20) 65012 | -2/Section 7 | Spotted B-99 Colossus 65056 | -2/Section 7 | Destroyed Alpha 7 65060 | -2/Section 7 | Build established: Bothacker-Mutant 65101 | -2/Section 7 | Destroyed Alpha 7 65202 | -2/Section 7 | Rewired B-99 Colossus 65250 | -2/Section 7 | First assault squad dispatched 65323 | -2/Section 7 | Incoming assault squad redirected 65401 | -2/Section 7 | Found Transdimensional Reconstructor 65500 | -2/Section 7 | Spotted Striker 65500 | -2/Section 7 | Spotted Striker 65619 | -2/Section 7 | Found Alien Energy Gun 65644 | -2/Section 7 | Destroyed Striker 65770 | -2/Section 7 | Incoming assault squad redirected 65799 | -2/Section 7 | Spotted Striker 65799 | -2/Section 7 | Spotted Striker 66066 | -2/Section 7 | Assimilated S7 Guard with formatsys_high 66078 | -2/Section 7 | Identified Sigix Sheargun 66086 | -2/Section 7 | Found Alien Artifact 66086 | -2/Section 7 | Identified Core Regenerator 66086 | -2/Section 7 | Used Core Regenerator, restored core integrity (+425) 66089 | -2/Section 7 | Lost 11 parts (2p4n3u2w) 66096 | -2/Section 7 | Scanned by Researcher 66097 | -2/Section 7 | Intercept squad dispatched 66101 | -2/Section 7 | Spotted Tracker 66102 | -2/Section 7 | Spotted Tracker 66110 | -2/Section 7 | Spotted Combat Programmer 66111 | -2/Section 7 | Spotted Combat Programmer 66112 | -2/Section 7 | Destroyed Tracker 66115 | -2/Section 7 | Combat Programmer assimilated allied S7 Guard 66126 | -2/Section 7 | Initialized slip node 66128 | -2/Section 7 | Core integrity fell below 50% 66129 | -2/Section 7 | Core integrity fell below 20% 66140 | -2/Section 7 | Destroyed by Q385-c with Enhanced Force Lance Last Messages --------------- 66134_ Penetrated by EMDS Slug. 66134_ Core Membrane filtered system corruption (1). 66134_ Slammed into Combat Programmer. 66135_ Destabilizing: Core damaged (-34). 66135_ Penetrated by EMDS Slug. 66135_ Core Membrane filtered system corruption (2). 66136_ Penetrated by EMDS Slug. 66136_ Slammed into Combat Programmer. 66138_ Penetrated by EMDS Slug. 66138_ Asb. Combat Suite destroyed. 66138_ Core Membrane filtered system corruption (1). 66138_ Anatomizer disabled. 66138_ Slammed into Combat Programmer. 66138_ U-05 Engineer lays Concrete. 66139_ The unstable cave ceiling collapses. 66139_ Slammed into Combat Programmer. 66139_ Penetrated by EMDS Slug. 66139_ Anatomizer disabled. 66139_ U-05 Engineer lays Concrete. 66140_ Slammed into Combat Programmer. Map ----- +----------------------------------------------------+ | # # ?????### ?##?###???# | | # # ?""##### #### ######??#?? | | """ # """ """ + ""##### #### #########?? | | """" # ""? """ # T"##### #### ########### | | """ # """ """ # ""##### #### ########### | | " # # ""##### #### ########### | | # # ##### ######### ###### | | ################# ##### ### ##### | | ![[%= # """"""" ##### ### "#?### | | """*=%= # """"""" ### # # # "##### | | "T"%=[=! # """"""" #### " "###?# | | " "!""" """ """ # ### """ T##### | | !|!""" """ """ # ### """" "##### | | !=%"""*""" """ # ###+###### |% """ "##### | | =%=[=%!= # # # "# ### | | ############+#### # """ ## ## | | #=![ # """" # #### # | | #[% # """ # ### / | | " # # " ## ### / | | " # # ] #" u # # !/! %/ | | " # """"" k###T############## ## =%==[/ | | # """"" ##### ; # | | ### """"" ##### """ """ T" ### | | """ k##### "" " """" $ ""##### | | ##### """ "" $ ####### | | % ##### " @ " % ! ####### | | ##### p Q ####### | | ######## ####### """ "p" ####### | | ######## ####### """ """ # ########## | | ######## ####### "" """ # ! ""####### | | ######## ######## # " " ""######? | | ######## ########## Y % ""####### | | ######## ######## ; """####### | | ## #?## ####################### " "####### | | ## #### ### # """T""" ### # % ""####### | | ## """ # """ """ ### # % ""####### | | ## """ # ### # " "####### | | ## """ #! ### # """####### | | ## ###+######### ############## | | """ """ ## """ ### ######### ############## | | """ """ ## """ ### ## # ########?##### | | """ """ ## """ ### ## # ############## | | ## # # # ############## | | """ """ ## + # # ############## | | """ """ ## # # """ # ############## | | ""? ?"" =# # # """ # #########?#### | | ## # # """ + ############## | | ## # # """ # ############## | | ? ? ? ?#####+#### # """ # ############## | | ? ? # """ # ############?#### | +----------------------------------------------------+ Best States ------------- Heat Dissipation 99 Energy Generation 89 Energy Capacity 1950 Matter Stores 300 Matter Capacity 300 Sight Range 22 Robot Scan Range 20 Terrain Scan Range 30 Terrain Scan Density 1010 Jamming Range 16 Cloak Strength 4 Additional Mass Support 20 Armor Coverage 1550 Resistance: KI 30 Resistance: TH 30 Resistance: EX 15 Resistance: EM 75 Resistance: I 15 Resistance: S 15 Resistance: P 15 Core Shielding 20 Propulsion Shielding 66 Utility Shielding 90 Weapon Shielding 100 Melee Speed Boost 30 Phase Shifting 8 Evasion (%) 58 Targeting Accuracy 20 Target Analysis 10 Core Analysis 8 Armor Integrity Analysis 30 Recoil Reduction 4 Particle Charging 20 Salvage Targeting 4 Offensive Hacking 14 Defensive Hacking 10 Relay Coupler Types 1 Relay Coupler Value 25 Authchip Count 2 Item Schematics ----------------- Exp. Sensor Array | -9/Materials | Scanalyzed Combat Drone Bay | -7/Data Miner | Free Lgt. Regenerative Plating | -7/Data Miner | Free Cld. Aerolev Unit | -7/Data Miner | Free Gravity Neutralizer | -7/Data Miner | Free Antimatter Cannon | -7/Data Miner | Free Antigrav System | -7/Data Miner | Free Adv. System Restoration Module | -7/Data Miner | Free Adv. Plasma Cannon | -7/Data Miner | Free Cloaking Device | -7/Data Miner | Free Imp. Shock Absorption System | -7/Data Miner | Free Recoil Nullifier | -7/Data Miner | Free Imp. Antigrav System | -7/Data Miner | Free Matter Compressor | -6/Zion | Archive Imp. Weapon Cycler | -6/Zion | Archive Fusion Compressor | -6/Zion | Archive Lance | -6/Zion | Archive Coil Gun | -6/Zion | Archive Imp. Kinecellerator | -6/Zion | Archive 0b10 Decoder Chip [Skirmisher] | -6/Zion | Archive Phase Gun | -6/Zion | Archive Adv. Actuator Array | -6/Zion | Archive Enh. Optical Array | -6/Zion | Archive Adv. Drone Bay | -6/Zion | Archive Adv. Heat Sink | -6/Zion | Archive Hvy. Shock Bomb Launcher | -6/Zion | Archive Plasma Rifle | -6/Zion | Archive Assault Drone Bay | -4/Zhirov | Free Exp. Heat Sink | -4/Zhirov | Free Exp. Optical Array | -4/Zhirov | Free Imp. Arc Thrower | -4/Zhirov | Free Adv. Kinecellerator | -3/Testing | Archive Coolant Network | -3/Testing | Archive Tactical Quantum Warhead | -3/Testing | Archive Com. Mass Driver | -3/Testing | Archive Exp. Myomer Leg | -3/Testing | Archive Spectral Analyzer | -3/Testing | Archive Hvy. Proton Cannon | -3/Testing | Archive Hvy. Neutron Cannon | -3/Testing | Archive Exp. Focal Shield | -2/Quarantine | Archive Kinetic Spear | -2/Quarantine | Archive Adv. Gravity Neutralizer | -2/Quarantine | Archive Robot Schematics ------------------ L-41 Fighter | -7/Data Miner | Free B-48 Gladiator | -7/Data Miner | Free G-50 Soldier | -7/Data Miner | Free B-60 Warrior | -7/Data Miner | Free T-07 Excavator | -6/Zion | Archive A-02 Transporter | -6/Zion | Archive H-77 Assassin | -6/Zion | Archive S-43 Plague | -3/Testing | Archive G-73 Enforcer | -2/Quarantine | Archive A-15 Conveyor | -2/Quarantine | Archive Fabricated ------------ Nothing Alien Tech Used ----------------- Integrated Reactor Transdimensional Reconstructor Phase Redirector Sigix Broadsword Terrabomb Core Stripper High-powered Transdimensional Reconstructor Dimensional Node Initializer Integrated Mediator Navigation Efficiency Matrix Core Membrane LRC Insulator LRC Armor Integrated Dissipator Sigix Sheargun Core Regenerator Achievements -------------- None Challenges ------------ None Game ------ Seed OmegaCoolantModule Manual? 0 Play Time 04:51:02 Cumulative 1260.6 hours Start 2022.12.12 @ 01:56:21 End 2022.12.13 @ 02:56:34 Sessions 9 Manual Loads 0 Difficulty Rogue Special Mode None Game No. 873 Rogue 869 Adventurer 4 Explorer 0 Win Type - Total 140 Types 105/10/8/6/2/1/1/4/3 Lore% 95 Gallery% 98 Achievement% 98 Wizard Run 0 Options --------- ASCII 0 Keyboard 1 Movement Vi Keybinds 0 Fullscreen 0 Font 20/X11 Map View 76x50 Tactical HUD 1 Map Filters NONE Filters NONE Steam 1 RUN: df0d132b-4897-4ec1-9b36-821c54bb4db9